Workbook

Sheet Grafici

Sheet Statistiche
A1: Data | B1: Codice | C1: Regione | D1: Ricoverati | E1: Terap. Intens. | F1: Ospedalizzati | G1: Quarantena | H1: Positivi | I1: + Positivi | J1: Nuovi | K1: Guariti | L1: Deceduti | M1: Totale | N1: Tamponi | Q1: x 2 | S1: % su Tot. | T1: + Nuovi | U1: + Guariti | V1: + Deceduti | W1: + Totali | X1: + Tamponi | Y1: % Positivi | Z1: % Guariti | AA1: % Deceduti | AB1: P. Stimati
A2: 2020-02-24T18:00:00 | B2: 1 | C2: Piemonte | D2: 2 | E2: 0 | F2: 2 | G2: 1 | H2: 3 | I2: 0 | J2: 3 | K2: 0 | L2: 0 | M2: 3 | N2: 141 | O2: =M2 -> 3 | Q2: =M2 -> 3 | S2: =M2*100/M1295 -> 1.310043668 | Y2: =IF(M2=0,0,H2/M2) -> 1 | Z2: =IF(M2=0,0,K2/M2) -> 0 | AA2: =IF(M2=0,0,L2/M2) -> 0 | AB2: =L2*100/B$1285 -> 0
A3: 2020-02-25T18:00:00 | B3: 1 | C3: Piemonte | D3: 2 | E3: 0 | F3: 2 | G3: 1 | H3: 3 | I3: 0 | J3: 0 | K3: 0 | L3: 0 | M3: 3 | N3: 141 | O3: =IF(P3="x2",M3,O2) -> 3 | P3: =IF(M3>O2*2,"x2",O2) -> 3 | Q3: =IF(P3="x2",M3,"") ->  | S3: =M3*100/M1296 -> 0.9316770186 | T3: =IF(J3-J2=0,"",J3-J2) -> -3 | U3: =IF(K3-K2=0,"",K3-K2) ->  | V3: =IF(L3-L2=0,"",L3-L2) ->  | W3: =IF(M3-M2=0,"",M3-M2) ->  | X3: =IF(N3-N2=0,"",N3-N2) ->  | Y3: 1 | Z3: 0 | AA3: 0 | AB3: =L3*100/B$1285 -> 0
A4: 2020-02-26T18:00:00 | B4: 1 | C4: Piemonte | D4: 2 | E4: 0 | F4: 2 | G4: 1 | H4: 3 | I4: 0 | J4: 0 | K4: 0 | L4: 0 | M4: 3 | N4: 156 | O4: 3 | P4: 3 | S4: =M4*100/M1297 -> 0.75 | X4: 15 | Y4: 1 | Z4: 0 | AA4: 0 | AB4: =L4*100/B$1285 -> 0
A5: 2020-02-27T18:00:00 | B5: 1 | C5: Piemonte | D5: 2 | E5: 0 | F5: 2 | G5: 0 | H5: 2 | I5: -1 | J5: -1 | K5: 0 | L5: 0 | M5: 2 | N5: 156 | O5: 3 | P5: 3 | S5: =M5*100/M1298 -> 0.3076923077 | T5: -1 | W5: -1 | Y5: 1 | Z5: 0 | AA5: 0 | AB5: =L5*100/B$1285 -> 0
A6: 2020-02-28T18:00:00 | B6: 1 | C6: Piemonte | D6: 7 | E6: 0 | F6: 7 | G6: 4 | H6: 11 | I6: 9 | J6: 9 | K6: 0 | L6: 0 | M6: 11 | N6: 227 | O6: 11 | P6: x2 | Q6: 11 | S6: =M6*100/M1299 -> 1.238738739 | T6: 10 | W6: 9 | X6: 71 | Y6: 1 | Z6: 0 | AA6: 0 | AB6: =L6*100/B$1285 -> 0
A7: 2020-02-29T17:00:00 | B7: 1 | C7: Piemonte | D7: 7 | E7: 0 | F7: 7 | G7: 4 | H7: 11 | I7: 0 | J7: 0 | K7: 0 | L7: 0 | M7: 11 | N7: 308 | O7: 11 | P7: 11 | S7: =M7*100/M1300 -> 0.975177305 | T7: -9 | X7: 81 | Y7: 1 | Z7: 0 | AA7: 0 | AB7: =L7*100/B$1285 -> 0
A8: 2020-03-01T17:00:00 | B8: 1 | C8: Piemonte | D8: 11 | E8: 2 | F8: 13 | G8: 36 | H8: 49 | I8: 38 | J8: 38 | K8: 0 | L8: 0 | M8: 49 | N8: 362 | O8: 49 | P8: x2 | Q8: 49 | S8: =M8*100/M1301 -> 2.892561983 | T8: 38 | W8: 38 | X8: 54 | Y8: 1 | Z8: 0 | AA8: 0 | AB8: =L8*100/B$1285 -> 0
A9: 2020-03-02T18:00:00 | B9: 1 | C9: Piemonte | D9: 12 | E9: 2 | F9: 14 | G9: 37 | H9: 51 | I9: 2 | J9: 2 | K9: 0 | L9: 0 | M9: 51 | N9: 434 | O9: 49 | P9: 49 | S9: =M9*100/M1302 -> 2.504911591 | T9: -36 | W9: 2 | X9: 72 | Y9: 1 | Z9: 0 | AA9: 0 | AB9: =L9*100/B$1285 -> 0
A10: 2020-03-03T18:00:00 | B10: 1 | C10: Piemonte | D10: 13 | E10: 3 | F10: 16 | G10: 40 | H10: 56 | I10: 5 | J10: 5 | K10: 0 | L10: 0 | M10: 56 | N10: 458 | O10: 49 | P10: 49 | S10: =M10*100/M1303 -> 2.238209432 | T10: 3 | W10: 5 | X10: 24 | Y10: 1 | Z10: 0 | AA10: 0 | AB10: =L10*100/B$1285 -> 0
A11: 2020-03-04T17:00:00 | B11: 1 | C11: Piemonte | D11: 26 | E11: 13 | F11: 39 | G11: 43 | H11: 82 | I11: 26 | J11: 26 | K11: 0 | L11: 0 | M11: 82 | N11: 543 | O11: 49 | P11: 49 | S11: =M11*100/M1304 -> 2.65458077 | T11: 21 | W11: 26 | X11: 85 | Y11: 1 | Z11: 0 | AA11: 0 | AB11: =L11*100/B$1285 -> 0
A12: 2020-03-05T17:00:00 | B12: 1 | C12: Piemonte | D12: 43 | E12: 17 | F12: 60 | G12: 46 | H12: 106 | I12: 24 | J12: 24 | K12: 0 | L12: 2 | M12: 108 | N12: 543 | O12: 108 | P12: x2 | Q12: 108 | S12: =M12*100/M1305 -> 2.799377916 | T12: -2 | V12: 2 | W12: 26 | Y12: 0.9814814815 | Z12: 0 | AA12: 0.01851851852 | AB12: =L12*100/B$1285 -> 70.67137809
A13: 2020-03-06T17:00:00 | B13: 1 | C13: Piemonte | D13: 57 | E13: 30 | F13: 87 | G13: 52 | H13: 139 | I13: 33 | J13: 33 | K13: 0 | L13: 4 | M13: 143 | N13: 793 | O13: 108 | P13: 108 | S13: =M13*100/M1306 -> 3.084555651 | T13: 9 | V13: 2 | W13: 35 | X13: 250 | Y13: 0.972027972 | Z13: 0 | AA13: 0.02797202797 | AB13: =L13*100/B$1285 -> 141.3427562
A14: 2020-03-07T18:00:00 | B14: 1 | C14: Piemonte | D14: 110 | E14: 38 | F14: 148 | G14: 54 | H14: 202 | I14: 63 | J14: 63 | K14: 0 | L14: 5 | M14: 207 | N14: 1046 | O14: 108 | P14: 108 | S14: =M14*100/M1307 -> 3.518612953 | T14: 30 | V14: 1 | W14: 64 | X14: 253 | Y14: 0.9758454106 | Z14: 0 | AA14: 0.02415458937 | AB14: =L14*100/B$1285 -> 176.6784452
A15: 2020-03-08T18:00:00 | B15: 1 | C15: Piemonte | D15: 245 | E15: 45 | F15: 290 | G15: 65 | H15: 355 | I15: 153 | J15: 153 | K15: 0 | L15: 5 | M15: 360 | N15: 1636 | O15: 360 | P15: x2 | Q15: 360 | S15: =M15*100/M1308 -> 4.881355932 | T15: 90 | W15: 153 | X15: 590 | Y15: 0.9861111111 | Z15: 0 | AA15: 0.01388888889 | AB15: =L15*100/B$1285 -> 176.6784452
A16: 2020-03-09T18:00:00 | B16: 1 | C16: Piemonte | D16: 222 | E16: 50 | F16: 272 | G16: 65 | H16: 337 | I16: -18 | J16: -18 | K16: 0 | L16: 13 | M16: 350 | N16: 1681 | O16: 360 | P16: 360 | S16: =M16*100/M1309 -> 3.815961622 | T16: -171 | V16: 8 | W16: -10 | X16: 45 | Y16: 0.9628571429 | Z16: 0 | AA16: 0.03714285714 | AB16: =L16*100/B$1285 -> 459.3639576
A17: 2020-03-10T18:00:00 | B17: 1 | C17: Piemonte | D17: 306 | E17: 66 | F17: 372 | G17: 64 | H17: 436 | I17: 99 | J17: 99 | K17: 0 | L17: 17 | M17: 453 | N17: 2374 | O17: 360 | P17: 360 | S17: =M17*100/M1310 -> 4.46349394 | T17: 117 | V17: 4 | W17: 103 | X17: 693 | Y17: 0.9624724062 | Z17: 0 | AA17: 0.03752759382 | AB17: =L17*100/B$1285 -> 600.7067138
A18: 2020-03-11T17:00:00 | B18: 1 | C18: Piemonte | D18: 319 | E18: 75 | F18: 394 | G18: 86 | H18: 480 | I18: 44 | J18: 44 | K18: 0 | L18: 21 | M18: 501 | N18: 2431 | O18: 360 | P18: 360 | S18: =M18*100/M1311 -> 4.020221473 | T18: -55 | V18: 4 | W18: 48 | X18: 57 | Y18: 0.9580838323 | Z18: 0 | AA18: 0.04191616766 | AB18: =L18*100/B$1285 -> 742.04947
A19: 2020-03-12T17:00:00 | B19: 1 | C19: Piemonte | D19: 368 | E19: 97 | F19: 465 | G19: 89 | H19: 554 | I19: 74 | J19: 74 | K19: 0 | L19: 26 | M19: 580 | N19: 2879 | O19: 360 | P19: 360 | S19: =M19*100/M1312 -> 3.837755575 | T19: 30 | V19: 5 | W19: 79 | X19: 448 | Y19: 0.9551724138 | Z19: 0 | AA19: 0.04482758621 | AB19: =L19*100/B$1285 -> 918.7279152
A20: 2020-03-13T17:00:00 | B20: 1 | C20: Piemonte | D20: 556 | E20: 135 | F20: 691 | G20: 103 | H20: 794 | I20: 240 | J20: 240 | K20: 0 | L20: 46 | M20: 840 | N20: 3105 | O20: 840 | P20: x2 | Q20: 840 | S20: =M20*100/M1313 -> 4.756511891 | T20: 166 | V20: 20 | W20: 260 | X20: 226 | Y20: 0.9452380952 | Z20: 0 | AA20: 0.05476190476 | AB20: =L20*100/B$1285 -> 1625.441696
A21: 2020-03-14T17:00:00 | B21: 1 | C21: Piemonte | D21: 538 | E21: 150 | F21: 688 | G21: 126 | H21: 814 | I21: 20 | J21: 20 | K21: 0 | L21: 59 | M21: 873 | N21: 3680 | O21: 840 | P21: 840 | S21: =M21*100/M1314 -> 4.126293898 | T21: -220 | V21: 13 | W21: 33 | X21: 575 | Y21: 0.932416953 | Z21: 0 | AA21: 0.06758304696 | AB21: =L21*100/B$1285 -> 2084.805654
A22: 2020-03-15T17:00:00 | B22: 1 | C22: Piemonte | D22: 726 | E22: 171 | F22: 897 | G22: 133 | H22: 1030 | I22: 216 | J22: 216 | K22: 0 | L22: 81 | M22: 1111 | N22: 4375 | O22: 840 | P22: 840 | S22: =M22*100/M1315 -> 4.489433063 | T22: 196 | V22: 22 | W22: 238 | X22: 695 | Y22: 0.9270927093 | Z22: 0 | AA22: 0.07290729073 | AB22: =L22*100/B$1285 -> 2862.190813
A23: 2020-03-16T17:00:00 | B23: 1 | C23: Piemonte | D23: 1045 | E23: 186 | F23: 1231 | G23: 174 | H23: 1405 | I23: 375 | J23: 375 | K23: 0 | L23: 111 | M23: 1516 | N23: 5588 | O23: 840 | P23: 840 | S23: =M23*100/M1316 -> 5.418155826 | T23: 159 | V23: 30 | W23: 405 | X23: 1213 | Y23: 0.9267810026 | Z23: 0 | AA23: 0.07321899736 | AB23: =L23*100/B$1285 -> 3922.261484
A24: 2020-03-17T17:00:00 | B24: 1 | C24: Piemonte | D24: 1378 | E24: 206 | F24: 1584 | G24: 180 | H24: 1764 | I24: 359 | J24: 359 | K24: 0 | L24: 133 | M24: 1897 | N24: 6543 | O24: 1897 | P24: x2 | Q24: 1897 | S24: =M24*100/M1317 -> 6.021075351 | T24: -16 | V24: 22 | W24: 381 | X24: 955 | Y24: 0.9298892989 | Z24: 0 | AA24: 0.07011070111 | AB24: =L24*100/B$1285 -> 4699.646643
A25: 2020-03-18T17:00:00 | B25: 1 | C25: Piemonte | D25: 1780 | E25: 227 | F25: 2007 | G25: 180 | H25: 2187 | I25: 423 | J25: 423 | K25: 0 | L25: 154 | M25: 2341 | N25: 7516 | O25: 1897 | P25: 1897 | S25: =M25*100/M1318 -> 6.555035981 | T25: 64 | V25: 21 | W25: 444 | X25: 973 | Y25: 0.9342161469 | Z25: 0 | AA25: 0.06578385305 | AB25: =L25*100/B$1285 -> 5441.696113
A26: 2020-03-19T17:00:00 | B26: 1 | C26: Piemonte | D26: 2279 | E26: 257 | F26: 2536 | G26: 218 | H26: 2754 | I26: 567 | J26: 567 | K26: 3 | L26: 175 | M26: 2932 | N26: 8853 | O26: 1897 | P26: 1897 | S26: =M26*100/M1319 -> 7.145120019 | T26: 144 | U26: 3 | V26: 21 | W26: 591 | X26: 1337 | Y26: 0.9392905866 | Z26: 0.00102319236 | AA26: 0.05968622101 | AB26: =L26*100/B$1285 -> 6183.745583
A27: 2020-03-20T17:00:00 | B27: 1 | C27: Piemonte | D27: 1541 | E27: 280 | F27: 1821 | G27: 1423 | H27: 3244 | I27: 490 | J27: 490 | K27: 8 | L27: 209 | M27: 3461 | N27: 9975 | O27: 1897 | P27: 1897 | S27: =M27*100/M1320 -> 7.360541035 | T27: -77 | U27: 5 | V27: 34 | W27: 529 | X27: =IF(N27-N26=0,"",N27-N26) -> 1122 | Y27: 0.937301358 | Z27: 0.002311470673 | AA27: 0.06038717134 | AB27: =L27*100/B$1285 -> 7385.159011
A28: 2020-03-21T17:00:00 | B28: 1 | C28: Piemonte | D28: 1976 | E28: 301 | F28: 2277 | G28: 1229 | H28: 3506 | I28: 262 | J28: 262 | K28: 8 | L28: 238 | M28: 3752 | N28: 10701 | O28: 1897 | P28: 1897 | S28: =M28*100/M1321 -> 7.002874314 | T28: -228 | V28: 29 | W28: =IF(M28-M27=0,"",M28-M27) -> 291 | X28: 726 | Y28: 0.934434968 | Z28: 0.002132196162 | AA28: 0.06343283582 | AB28: =L28*100/B$1285 -> 8409.893993
A29: 2020-03-22T17:00:00 | B29: 1 | C29: Piemonte | D29: 2118 | E29: 308 | F29: 2426 | G29: 1701 | H29: 4127 | I29: 621 | J29: 621 | K29: 10 | L29: 283 | M29: 4420 | N29: 12701 | O29: 4420 | P29: x2 | Q29: 4420 | S29: =M29*100/M1322 -> 7.474043762 | T29: 359 | U29: 2 | V29: 45 | W29: 668 | X29: 2000 | Y29: 0.9337104072 | Z29: 0.002262443439 | AA29: 0.06402714932 | AB29: =L29*100/B$1285 -> 10000
A30: 2020-03-23T17:00:00 | B30: 1 | C30: Piemonte | D30: 2194 | E30: 343 | F30: 2537 | G30: 1992 | H30: 4529 | I30: 402 | J30: 402 | K30: 17 | L30: 315 | M30: 4861 | N30: 13560 | O30: 4420 | P30: 4420 | S30: =M30*100/M1323 -> 7.603985796 | T30: -219 | U30: 7 | V30: 32 | W30: 441 | X30: 859 | Y30: 0.931701296 | Z30: 0.003497222794 | AA30: 0.06480148118 | AB30: =L30*100/B$1285 -> 11130.74205
A31: 2020-03-24T17:00:00 | B31: 1 | C31: Piemonte | D31: 2404 | E31: 360 | F31: 2764 | G31: 2360 | H31: 5124 | I31: 595 | J31: 595 | K31: 17 | L31: 374 | M31: 5515 | N31: 15469 | O31: 4420 | P31: 4420 | S31: =M31*100/M1324 -> 7.97241818 | T31: 193 | V31: 59 | W31: 654 | X31: 1909 | Y31: 0.9291024479 | Z31: 0.003082502267 | AA31: 0.06781504986 | AB31: =L31*100/B$1285 -> 13215.5477
A32: 2020-03-25T17:00:00 | B32: 1 | C32: Piemonte | D32: 2544 | E32: 381 | F32: 2925 | G32: 2631 | H32: 5556 | I32: 432 | J32: 432 | K32: 19 | L32: 449 | M32: 6024 | N32: 16655 | O32: 4420 | P32: 4420 | S32: =M32*100/M1325 -> 8.098298067 | T32: -163 | U32: 2 | V32: 75 | W32: 509 | X32: 1186 | Y32: 0.922310757 | Z32: 0.003154050465 | AA32: 0.07453519256 | AB32: =L32*100/B$1285 -> 15865.72438
A33: 2020-03-26T17:00:00 | B33: 1 | C33: Piemonte | D33: 2633 | E33: 408 | F33: 3041 | G33: 2909 | H33: 5950 | I33: 394 | J33: 394 | K33: 135 | L33: 449 | M33: 6534 | N33: 18054 | O33: 4420 | P33: 4420 | S33: =M33*100/M1326 -> 8.112839742 | T33: -38 | U33: 116 | W33: 510 | X33: =IF(N33-N32=0,"",N33-N32) -> 1399 | Y33: 0.9106213652 | Z33: 0.02066115702 | AA33: 0.06871747781 | AB33: =L33*100/B$1285 -> 15865.72438
A34: 2020-03-27T17:00:00 | B34: 1 | C34: Piemonte | D34: 2852 | E34: 431 | F34: 3283 | G34: 3064 | H34: 6347 | I34: 397 | J34: 558 | K34: 176 | L34: 569 | M34: 7092 | N34: 19705 | O34: 4420 | P34: =IF(M34>O33*2,"x2",O33) -> 4420 | Q34: =IF(P34="x2",M34,"") ->  | S34: =M34*100/M1327 -> 8.199033504 | T34: =IF(J34-J33=0,"",J34-J33) -> 164 | U34: 41 | V34: 120 | W34: 558 | X34: 1651 | Y34: 0.8949520587 | Z34: 0.02481669487 | AA34: 0.08023124647 | AB34: =L34*100/B$1285 -> 20106.00707
A35: 2020-03-28T17:00:00 | B35: 1 | C35: Piemonte | D35: 3094 | E35: 439 | F35: 3533 | G35: 3318 | H35: 6851 | I35: 504 | J35: 579 | K35: 203 | L35: 617 | M35: 7671 | N35: 21511 | O35: =IF(P35="x2",M35,O34) -> 4420 | P35: 4420 | S35: =M35*100/M1328 -> 8.295484038 | T35: 21 | U35: 27 | V35: 48 | W35: 579 | X35: 1806 | Y35: 0.8931038978 | Z35: 0.02646330335 | AA35: 0.08043279885 | AB35: =L35*100/B$1285 -> 21802.12014
A36: 2020-03-29T17:00:00 | B36: 1 | C36: Piemonte | D36: 2985 | E36: 443 | F36: 3428 | G36: 3840 | H36: 7268 | I36: 417 | J36: 535 | K36: 254 | L36: 684 | M36: 8206 | N36: 24058 | O36: 4420 | P36: 4420 | S36: =M36*100/M1329 -> 8.400126933 | T36: -44 | U36: 51 | V36: 67 | W36: 535 | X36: 2547 | Y36: 0.8856933951 | Z36: 0.03095296125 | AA36: 0.08335364368 | AB36: =L36*100/B$1285 -> 24169.61131
A37: 2020-03-30T17:00:00 | B37: 1 | C37: Piemonte | D37: 2985 | E37: 452 | F37: 3437 | G37: 4218 | H37: 7655 | I37: 387 | J37: 506 | K37: 308 | L37: 749 | M37: 8712 | N37: 25478 | O37: 4420 | P37: 4420 | S37: =M37*100/M1330 -> 8.563087901 | T37: -29 | U37: 54 | V37: 65 | W37: 506 | X37: 1420 | Y37: 0.8786730946 | Z37: 0.03535353535 | AA37: 0.08597337006 | AB37: =L37*100/B$1285 -> 26466.4311
A38: 2020-03-31T17:00:00 | B38: 1 | C38: Piemonte | D38: 3174 | E38: 452 | F38: 3626 | G38: 4456 | H38: 8082 | I38: 427 | J38: 589 | K38: 365 | L38: 854 | M38: 9301 | N38: 27658 | O38: 9301 | P38: x2 | Q38: 9301 | S38: =M38*100/M1331 -> 8.791780097 | T38: 83 | U38: 57 | V38: 105 | W38: 589 | X38: 2180 | Y38: 0.8689388238 | Z38: 0.03924309214 | AA38: 0.09181808408 | AB38: =L38*100/B$1285 -> 30176.67845
A39: 2020-04-01T17:00:00 | B39: 1 | C39: Piemonte | D39: 3146 | E39: 453 | F39: 3599 | G39: 4871 | H39: 8470 | I39: 388 | J39: 494 | K39: 439 | L39: 886 | M39: 9795 | N39: 30060 | O39: 9301 | P39: 9301 | S39: =M39*100/M1332 -> 8.858321124 | T39: -95 | U39: 74 | V39: 32 | W39: 494 | X39: =IF(N39-N38=0,"",N39-N38) -> 2402 | Y39: =IF(M39=0,0,H39/M39) -> 0.8647269015 | Z39: =IF(M39=0,0,K39/M39) -> 0.04481878509 | AA39: =IF(M39=0,0,L39/M39) -> 0.09045431343 | AB39: =L39*100/B$1285 -> 31307.42049
A40: 2020-04-02T17:00:00 | B40: 1 | C40: Piemonte | D40: 3341 | E40: 453 | F40: 3794 | G40: 5005 | H40: 8799 | I40: 329 | J40: 558 | K40: 571 | L40: 983 | M40: 10353 | N40: 32100 | O40: 9301 | P40: =IF(M40>O39*2,"x2",O39) -> 9301 | Q40: =IF(P40="x2",M40,"") ->  | S40: =M40*100/M1333 -> 8.983703858 | T40: =IF(J40-J39=0,"",J40-J39) -> 64 | U40: =IF(K40-K39=0,"",K40-K39) -> 132 | V40: =IF(L40-L39=0,"",L40-L39) -> 97 | W40: =IF(M40-M39=0,"",M40-M39) -> 558 | X40: 2040 | Y40: 0.8498985801 | Z40: 0.05515309572 | AA40: 0.09494832416 | AB40: =L40*100/B$1285 -> 34734.98233
A41: 2020-04-03T17:00:00 | B41: 1 | C41: Piemonte | D41: 3300 | E41: 452 | F41: 3752 | G41: 5378 | H41: 9130 | I41: 331 | J41: 543 | K41: 723 | L41: 1043 | M41: 10896 | N41: 34281 | O41: =IF(P41="x2",M41,O40) -> 9301 | P41: =IF(M41>O40*2,"x2",O40) -> 9301 | Q41: =IF(P41="x2",M41,"") ->  | S41: =M41*100/M1334 -> 9.093109232 | T41: =IF(J41-J40=0,"",J41-J40) -> -15 | U41: =IF(K41-K40=0,"",K41-K40) -> 152 | V41: =IF(L41-L40=0,"",L41-L40) -> 60 | W41: =IF(M41-M40=0,"",M41-M40) -> 543 | X41: 2181 | Y41: 0.8379221733 | Z41: 0.06635462555 | AA41: 0.09572320117 | AB41: =L41*100/B$1285 -> 36855.12367
A42: 2020-04-04T17:00:00 | B42: 1 | C42: Piemonte | D42: 3441 | E42: 450 | F42: 3891 | G42: 5802 | H42: 9693 | I42: 563 | J42: 813 | K42: 888 | L42: 1128 | M42: 11709 | N42: 37181 | O42: =IF(P42="x2",M42,O41) -> 9301 | P42: =IF(M42>O41*2,"x2",O41) -> 9301 | Q42: =IF(P42="x2",M42,"") ->  | S42: =M42*100/M1335 -> 9.394858463 | T42: =IF(J42-J41=0,"",J42-J41) -> 270 | U42: =IF(K42-K41=0,"",K42-K41) -> 165 | V42: =IF(L42-L41=0,"",L42-L41) -> 85 | W42: =IF(M42-M41=0,"",M42-M41) -> 813 | X42: 2900 | Y42: 0.8278247502 | Z42: 0.07583909813 | AA42: 0.09633615168 | AB42: =L42*100/B$1285 -> 39858.65724
A43: 2020-04-05T17:00:00 | B43: 1 | C43: Piemonte | D43: 3472 | E43: 444 | F43: 3916 | G43: 6261 | H43: 10177 | I43: 484 | J43: 653 | K43: 1017 | L43: 1168 | M43: 12362 | N43: 38539 | O43: =IF(P43="x2",M43,O42) -> 9301 | P43: =IF(M43>O42*2,"x2",O42) -> 9301 | Q43: =IF(P43="x2",M43,"") ->  | S43: =M43*100/M1336 -> 9.586810187 | T43: =IF(J43-J42=0,"",J43-J42) -> -160 | U43: =IF(K43-K42=0,"",K43-K42) -> 129 | V43: =IF(L43-L42=0,"",L43-L42) -> 40 | W43: =IF(M43-M42=0,"",M43-M42) -> 653 | X43: 1358 | Y43: 0.8232486653 | Z43: 0.08226824138 | AA43: 0.09448309335 | AB43: =L43*100/B$1285 -> 41272.08481
A44: 2020-04-06T17:00:00 | B44: 1 | C44: Piemonte | D44: 3484 | E44: 438 | F44: 3922 | G44: 6623 | H44: 10545 | I44: 368 | J44: 562 | K44: 1128 | L44: 1251 | M44: 12924 | N44: 41123 | O44: =IF(P44="x2",M44,O43) -> 9301 | P44: =IF(M44>O43*2,"x2",O43) -> 9301 | Q44: =IF(P44="x2",M44,"") ->  | S44: =M44*100/M1337 -> 9.750503595 | T44: =IF(J44-J43=0,"",J44-J43) -> -91 | U44: =IF(K44-K43=0,"",K44-K43) -> 111 | V44: =IF(L44-L43=0,"",L44-L43) -> 83 | W44: =IF(M44-M43=0,"",M44-M43) -> 562 | X44: 2584 | Y44: 0.8159238626 | Z44: 0.08727948004 | AA44: 0.09679665738 | AB44: =L44*100/B$1285 -> 44204.947
A45: 2020-04-07T17:00:00 | B45: 1 | C45: Piemonte | D45: 3553 | E45: 432 | F45: 3985 | G45: 6719 | H45: 10704 | I45: 159 | J45: 419 | K45: 1320 | L45: 1319 | M45: 13343 | N45: 44121 | O45: =IF(P45="x2",M45,O44) -> 9301 | P45: =IF(M45>O44*2,"x2",O44) -> 9301 | Q45: =IF(P45="x2",M45,"") ->  | S45: =M45*100/M1338 -> 9.840986533 | T45: =IF(J45-J44=0,"",J45-J44) -> -143 | U45: =IF(K45-K44=0,"",K45-K44) -> 192 | V45: =IF(L45-L44=0,"",L45-L44) -> 68 | W45: =IF(M45-M44=0,"",M45-M44) -> 419 | X45: =IF(N45-N44=0,"",N45-N44) -> 2998 | Y45: =IF(M45=0,0,H45/M45) -> 0.8022183917 | Z45: =IF(M45=0,0,K45/M45) -> 0.098928277 | AA45: =IF(M45=0,0,L45/M45) -> 0.09885333133 | AB45: =L45*100/B$1285 -> 46607.77385
A46: 2020-04-08T17:00:00 | B46: 1 | C46: Piemonte | D46: 3493 | E46: 423 | F46: 3916 | G46: 7073 | H46: 10989 | I46: 285 | J46: 540 | K46: 1516 | L46: 1378 | M46: 13883 | N46: 48495 | O46: =IF(P46="x2",M46,O45) -> 9301 | P46: =IF(M46>O45*2,"x2",O45) -> 9301 | Q46: =IF(P46="x2",M46,"") ->  | S46: =M46*100/M1339 -> 9.957538982 | T46: =IF(J46-J45=0,"",J46-J45) -> 121 | U46: =IF(K46-K45=0,"",K46-K45) -> 196 | V46: =IF(L46-L45=0,"",L46-L45) -> 59 | W46: =IF(M46-M45=0,"",M46-M45) -> 540 | X46: =IF(N46-N45=0,"",N46-N45) -> 4374 | Y46: =IF(M46=0,0,H46/M46) -> 0.7915436145 | Z46: =IF(M46=0,0,K46/M46) -> 0.1091983001 | AA46: =IF(M46=0,0,L46/M46) -> 0.09925808543 | AB46: =L46*100/B$1285 -> 48692.57951
A47: 2020-04-09T17:00:00 | B47: 1 | C47: Piemonte | D47: 3514 | E47: 412 | F47: 3926 | G47: 7410 | H47: 11336 | I47: 347 | J47: 639 | K47: 1732 | L47: 1454 | M47: 14522 | N47: 52807 | O47: =IF(P47="x2",M47,O46) -> 9301 | P47: =IF(M47>O46*2,"x2",O46) -> 9301 | Q47: =IF(P47="x2",M47,"") ->  | S47: =M47*100/M1340 -> 10.11098269 | T47: =IF(J47-J46=0,"",J47-J46) -> 99 | U47: =IF(K47-K46=0,"",K47-K46) -> 216 | V47: =IF(L47-L46=0,"",L47-L46) -> 76 | W47: =IF(M47-M46=0,"",M47-M46) -> 639 | X47: =IF(N47-N46=0,"",N47-N46) -> 4312 | Y47: =IF(M47=0,0,H47/M47) -> 0.7806087316 | Z47: =IF(M47=0,0,K47/M47) -> 0.1192673186 | AA47: =IF(M47=0,0,L47/M47) -> 0.1001239499 | AB47: =L47*100/B$1285 -> 51378.09187
A48: 2020-04-10T17:00:00 | B48: 1 | C48: Piemonte | D48: 3497 | E48: 394 | F48: 3891 | G48: 7685 | H48: 11576 | I48: 240 | J48: 490 | K48: 1904 | L48: 1532 | M48: 15012 | N48: 57457 | O48: =IF(P48="x2",M48,O47) -> 9301 | P48: =IF(M48>O47*2,"x2",O47) -> 9301 | Q48: =IF(P48="x2",M48,"") ->  | S48: =M48*100/M1341 -> 10.17231682 | T48: =IF(J48-J47=0,"",J48-J47) -> -149 | U48: =IF(K48-K47=0,"",K48-K47) -> 172 | V48: =IF(L48-L47=0,"",L48-L47) -> 78 | W48: =IF(M48-M47=0,"",M48-M47) -> 490 | X48: =IF(N48-N47=0,"",N48-N47) -> 4650 | Y48: =IF(M48=0,0,H48/M48) -> 0.7711164402 | Z48: =IF(M48=0,0,K48/M48) -> 0.1268318678 | AA48: =IF(M48=0,0,L48/M48) -> 0.102051692 | AB48: =L48*100/B$1285 -> 54134.27562
A49: 2020-04-11T17:00:00 | B49: 1 | C49: Piemonte | D49: 3435 | E49: 384 | F49: 3819 | G49: 8351 | H49: 12170 | I49: 594 | J49: 996 | K49: 2205 | L49: 1633 | M49: 16008 | N49: 62577 | O49: =IF(P49="x2",M49,O48) -> 9301 | P49: =IF(M49>O48*2,"x2",O48) -> 9301 | Q49: =IF(P49="x2",M49,"") ->  | S49: =M49*100/M1342 -> 10.51283567 | T49: =IF(J49-J48=0,"",J49-J48) -> 506 | U49: =IF(K49-K48=0,"",K49-K48) -> 301 | V49: =IF(L49-L48=0,"",L49-L48) -> 101 | W49: =IF(M49-M48=0,"",M49-M48) -> 996 | X49: =IF(N49-N48=0,"",N49-N48) -> 5120 | Y49: =IF(M49=0,0,H49/M49) -> 0.7602448776 | Z49: =IF(M49=0,0,K49/M49) -> 0.1377436282 | AA49: =IF(M49=0,0,L49/M49) -> 0.1020114943 | AB49: =L49*100/B$1285 -> 57703.18021
A50: 2020-04-12T17:00:00 | B50: 1 | C50: Piemonte | D50: 3429 | E50: 381 | F50: 3810 | G50: 8695 | H50: 12505 | I50: 335 | J50: 652 | K50: 2426 | L50: 1729 | M50: 16660 | N50: 66555 | O50: =IF(P50="x2",M50,O49) -> 9301 | P50: =IF(M50>O49*2,"x2",O49) -> 9301 | Q50: =IF(P50="x2",M50,"") ->  | S50: =M50*100/M1343 -> 10.65469452 | T50: =IF(J50-J49=0,"",J50-J49) -> -344 | U50: =IF(K50-K49=0,"",K50-K49) -> 221 | V50: =IF(L50-L49=0,"",L50-L49) -> 96 | W50: =IF(M50-M49=0,"",M50-M49) -> 652 | X50: =IF(N50-N49=0,"",N50-N49) -> 3978 | Y50: =IF(M50=0,0,H50/M50) -> 0.7506002401 | Z50: =IF(M50=0,0,K50/M50) -> 0.1456182473 | AA50: =IF(M50=0,0,L50/M50) -> 0.1037815126 | AB50: =L50*100/B$1285 -> 61095.40636
A51: 2020-04-13T17:00:00 | B51: 1 | C51: Piemonte | D51: 3344 | E51: 379 | F51: 3723 | G51: 9042 | H51: 12765 | I51: 260 | J51: 474 | K51: 2543 | L51: 1826 | M51: 17134 | N51: 69170 | O51: =IF(P51="x2",M51,O50) -> 9301 | P51: =IF(M51>O50*2,"x2",O50) -> 9301 | Q51: =IF(P51="x2",M51,"") ->  | S51: =M51*100/M1344 -> 10.74124226 | T51: =IF(J51-J50=0,"",J51-J50) -> -178 | U51: =IF(K51-K50=0,"",K51-K50) -> 117 | V51: =IF(L51-L50=0,"",L51-L50) -> 97 | W51: =IF(M51-M50=0,"",M51-M50) -> 474 | X51: =IF(N51-N50=0,"",N51-N50) -> 2615 | Y51: =IF(M51=0,0,H51/M51) -> 0.7450099218 | Z51: =IF(M51=0,0,K51/M51) -> 0.1484183495 | AA51: =IF(M51=0,0,L51/M51) -> 0.1065717287 | AB51: =L51*100/B$1285 -> 64522.9682
A52: 2020-04-14T17:00:00 | B52: 1 | C52: Piemonte | D52: 3395 | E52: 367 | F52: 3762 | G52: 9293 | H52: 13055 | I52: 290 | J52: 556 | K52: 2708 | L52: 1927 | M52: 17690 | N52: 71678 | O52: =IF(P52="x2",M52,O51) -> 9301 | P52: =IF(M52>O51*2,"x2",O51) -> 9301 | Q52: =IF(P52="x2",M52,"") ->  | S52: =M52*100/M1345 -> 10.88695781 | T52: =IF(J52-J51=0,"",J52-J51) -> 82 | U52: =IF(K52-K51=0,"",K52-K51) -> 165 | V52: =IF(L52-L51=0,"",L52-L51) -> 101 | W52: =IF(M52-M51=0,"",M52-M51) -> 556 | X52: =IF(N52-N51=0,"",N52-N51) -> 2508 | Y52: =IF(M52=0,0,H52/M52) -> 0.7379875636 | Z52: =IF(M52=0,0,K52/M52) -> 0.1530808366 | AA52: =IF(M52=0,0,L52/M52) -> 0.1089315998 | AB52: =L52*100/B$1285 -> 68091.87279
A53: 2020-04-15T17:00:00 | B53: 1 | C53: Piemonte | D53: 3338 | E53: 366 | F53: 3704 | G53: 9491 | H53: 13195 | I53: 140 | J53: 539 | K53: 3019 | L53: 2015 | M53: 18229 | N53: 75664 | O53: =IF(P53="x2",M53,O52) -> 9301 | P53: =IF(M53>O52*2,"x2",O52) -> 9301 | Q53: =IF(P53="x2",M53,"") ->  | S53: =M53*100/M1346 -> 11.03751022 | T53: =IF(J53-J52=0,"",J53-J52) -> -17 | U53: =IF(K53-K52=0,"",K53-K52) -> 311 | V53: =IF(L53-L52=0,"",L53-L52) -> 88 | W53: =IF(M53-M52=0,"",M53-M52) -> 539 | X53: =IF(N53-N52=0,"",N53-N52) -> 3986 | Y53: =IF(M53=0,0,H53/M53) -> 0.723846618 | Z53: =IF(M53=0,0,K53/M53) -> 0.1656152285 | AA53: =IF(M53=0,0,L53/M53) -> 0.1105381535 | AB53: =L53*100/B$1285 -> 71201.41343
A54: =A53 + 1 -> 2020-04-16T17:00:00 | P54: Media x2 | Q54: =COUNT(M2:M53) / COUNT(Q2:Q53) -> 5.777777778
A55: =A54+1 -> 2020-04-17T17:00:00
A56: =A55+1 -> 2020-04-18T17:00:00
E57: =E53/$M53 -> 0.02007789786 | H57: =H53/$M53 -> 0.723846618 | K57: =K53/$M53 -> 0.1656152285 | L57: =L53/$M53 -> 0.1105381535 | N57: =N53/$M53 -> 4.150748807
A61: Data | B61: Codice | C61: Regione | D61: Ricoverati | E61: Terap. Intens. | F61: Ospedalizzati | G61: Quarantena | H61: Positivi | I61: + Positivi | J61: Nuovi | K61: Guariti | L61: Deceduti | M61: Totale | N61: Tamponi | Q61: x 2 | S61: % su Tot. | T61: + Nuovi | U61: + Guariti | V61: + Deceduti | W61: + Totali | X61: + Tamponi | Y61: % Positivi | Z61: % Guariti | AA61: % Deceduti | AB61: P. Stimati
A62: 2020-02-24T18:00:00 | B62: 2 | C62: Valle d'Aosta | D62: 0 | E62: 0 | F62: 0 | G62: 0 | H62: 0 | I62: 0 | J62: 0 | K62: 0 | L62: 0 | M62: 0 | N62: 7 | O62: =M62 -> 0 | Q62: =M62 -> 0 | S62: =M62*100/M1295 -> 0 | Y62: =IF(M62=0,0,H62/M62) -> 0 | Z62: =IF(M62=0,0,K62/M62) -> 0 | AA62: =IF(M62=0,0,L62/M62) -> 0 | AB62: =L62*100/B$1285 -> 0
A63: 2020-02-25T18:00:00 | B63: 2 | C63: Valle d'Aosta | D63: 0 | E63: 0 | F63: 0 | G63: 0 | H63: 0 | I63: 0 | J63: 0 | K63: 0 | L63: 0 | M63: 0 | N63: 7 | O63: =IF(P63="x2",M63,O62) -> 0 | P63: =IF(M63>O62*2,"x2",O62) -> 0 | Q63: =IF(P63="x2",M63,"") ->  | S63: =M63*100/M1296 -> 0 | T63: =IF(J63-J62=0,"",J63-J62) ->  | U63: =IF(K63-K62=0,"",K63-K62) ->  | V63: =IF(L63-L62=0,"",L63-L62) ->  | W63: =IF(M63-M62=0,"",M63-M62) ->  | X63: =IF(N63-N62=0,"",N63-N62) ->  | Y63: =IF(M63=0,0,H63/M63) -> 0 | Z63: =IF(M63=0,0,K63/M63) -> 0 | AA63: =IF(M63=0,0,L63/M63) -> 0 | AB63: =L63*100/B$1285 -> 0
A64: 2020-02-26T18:00:00 | B64: 2 | C64: Valle d'Aosta | D64: 0 | E64: 0 | F64: 0 | G64: 0 | H64: 0 | I64: 0 | J64: 0 | K64: 0 | L64: 0 | M64: 0 | N64: 7 | O64: 0 | P64: 0 | S64: =M64*100/M1297 -> 0 | Y64: 0 | Z64: 0 | AA64: 0 | AB64: =L64*100/B$1285 -> 0
A65: 2020-02-27T18:00:00 | B65: 2 | C65: Valle d'Aosta | D65: 0 | E65: 0 | F65: 0 | G65: 0 | H65: 0 | I65: 0 | J65: 0 | K65: 0 | L65: 0 | M65: 0 | N65: 9 | O65: 0 | P65: 0 | S65: =M65*100/M1298 -> 0 | X65: 2 | Y65: 0 | Z65: 0 | AA65: 0 | AB65: =L65*100/B$1285 -> 0
A66: 2020-02-28T18:00:00 | B66: 2 | C66: Valle d'Aosta | D66: 0 | E66: 0 | F66: 0 | G66: 0 | H66: 0 | I66: 0 | J66: 0 | K66: 0 | L66: 0 | M66: 0 | N66: 9 | O66: 0 | P66: 0 | S66: =M66*100/M1299 -> 0 | Y66: 0 | Z66: 0 | AA66: 0 | AB66: =L66*100/B$1285 -> 0
A67: 2020-02-29T17:00:00 | B67: 2 | C67: Valle d'Aosta | D67: 0 | E67: 0 | F67: 0 | G67: 0 | H67: 0 | I67: 0 | J67: 0 | K67: 0 | L67: 0 | M67: 0 | N67: 9 | O67: 0 | P67: 0 | S67: =M67*100/M1300 -> 0 | Y67: 0 | Z67: 0 | AA67: 0 | AB67: =L67*100/B$1285 -> 0
A68: 2020-03-01T17:00:00 | B68: 2 | C68: Valle d'Aosta | D68: 0 | E68: 0 | F68: 0 | G68: 0 | H68: 0 | I68: 0 | J68: 0 | K68: 0 | L68: 0 | M68: 0 | N68: 10 | O68: 0 | P68: 0 | S68: =M68*100/M1301 -> 0 | X68: 1 | Y68: 0 | Z68: 0 | AA68: 0 | AB68: =L68*100/B$1285 -> 0
A69: 2020-03-02T18:00:00 | B69: 2 | C69: Valle d'Aosta | D69: 0 | E69: 0 | F69: 0 | G69: 0 | H69: 0 | I69: 0 | J69: 0 | K69: 0 | L69: 0 | M69: 0 | N69: 11 | O69: 0 | P69: 0 | S69: =M69*100/M1302 -> 0 | X69: 1 | Y69: 0 | Z69: 0 | AA69: 0 | AB69: =L69*100/B$1285 -> 0
A70: 2020-03-03T18:00:00 | B70: 2 | C70: Valle d'Aosta | D70: 0 | E70: 0 | F70: 0 | G70: 0 | H70: 0 | I70: 0 | J70: 0 | K70: 0 | L70: 0 | M70: 0 | N70: 12 | O70: 0 | P70: 0 | S70: =M70*100/M1303 -> 0 | X70: 1 | Y70: 0 | Z70: 0 | AA70: 0 | AB70: =L70*100/B$1285 -> 0
A71: 2020-03-04T17:00:00 | B71: 2 | C71: Valle d'Aosta | D71: 0 | E71: 0 | F71: 0 | G71: 0 | H71: 0 | I71: 0 | J71: 0 | K71: 0 | L71: 0 | M71: 0 | N71: 15 | O71: 0 | P71: 0 | S71: =M71*100/M1304 -> 0 | X71: 3 | Y71: 0 | Z71: 0 | AA71: 0 | AB71: =L71*100/B$1285 -> 0
A72: 2020-03-05T17:00:00 | B72: 2 | C72: Valle d'Aosta | D72: 0 | E72: 0 | F72: 0 | G72: 2 | H72: 2 | I72: 2 | J72: 2 | K72: 0 | L72: 0 | M72: 2 | N72: 21 | O72: 2 | P72: x2 | Q72: 2 | S72: =M72*100/M1305 -> 0.05184033178 | T72: 2 | W72: 2 | X72: 6 | Y72: 1 | Z72: 0 | AA72: 0 | AB72: =L72*100/B$1285 -> 0
A73: 2020-03-06T17:00:00 | B73: 2 | C73: Valle d'Aosta | D73: 0 | E73: 0 | F73: 0 | G73: 7 | H73: 7 | I73: 5 | J73: 5 | K73: 0 | L73: 0 | M73: 7 | N73: 28 | O73: 7 | P73: x2 | Q73: 7 | S73: =M73*100/M1306 -> 0.1509922347 | T73: 3 | W73: 5 | X73: 7 | Y73: 1 | Z73: 0 | AA73: 0 | AB73: =L73*100/B$1285 -> 0
A74: 2020-03-07T18:00:00 | B74: 2 | C74: Valle d'Aosta | D74: 1 | E74: 0 | F74: 1 | G74: 7 | H74: 8 | I74: 1 | J74: 1 | K74: 0 | L74: 0 | M74: 8 | N74: 32 | O74: 7 | P74: 7 | S74: =M74*100/M1307 -> 0.1359850416 | T74: -4 | W74: 1 | X74: 4 | Y74: 1 | Z74: 0 | AA74: 0 | AB74: =L74*100/B$1285 -> 0
A75: 2020-03-08T18:00:00 | B75: 2 | C75: Valle d'Aosta | D75: 1 | E75: 0 | F75: 1 | G75: 8 | H75: 9 | I75: 1 | J75: 1 | K75: 0 | L75: 0 | M75: 9 | N75: 41 | O75: 7 | P75: 7 | S75: =M75*100/M1308 -> 0.1220338983 | W75: 1 | X75: 9 | Y75: 1 | Z75: 0 | AA75: 0 | AB75: =L75*100/B$1285 -> 0
A76: 2020-03-09T18:00:00 | B76: 2 | C76: Valle d'Aosta | D76: 4 | E76: 0 | F76: 4 | G76: 11 | H76: 15 | I76: 6 | J76: 6 | K76: 0 | L76: 0 | M76: 15 | N76: 67 | O76: 15 | P76: x2 | Q76: 15 | S76: =M76*100/M1309 -> 0.1635412124 | T76: 5 | W76: 6 | X76: 26 | Y76: 1 | Z76: 0 | AA76: 0 | AB76: =L76*100/B$1285 -> 0
A77: 2020-03-10T18:00:00 | B77: 2 | C77: Valle d'Aosta | D77: 2 | E77: 0 | F77: 2 | G77: 15 | H77: 17 | I77: 2 | J77: 2 | K77: 0 | L77: 0 | M77: 17 | N77: 89 | O77: 15 | P77: 15 | S77: =M77*100/M1310 -> 0.1675041876 | T77: -4 | W77: 2 | X77: 22 | Y77: 1 | Z77: 0 | AA77: 0 | AB77: =L77*100/B$1285 -> 0
A78: 2020-03-11T17:00:00 | B78: 2 | C78: Valle d'Aosta | D78: 2 | E78: 0 | F78: 2 | G78: 17 | H78: 19 | I78: 2 | J78: 2 | K78: 0 | L78: 1 | M78: 20 | N78: 99 | O78: 15 | P78: 15 | S78: =M78*100/M1311 -> 0.1604878832 | V78: 1 | W78: 3 | X78: 10 | Y78: 0.95 | Z78: 0 | AA78: 0.05 | AB78: =L78*100/B$1285 -> 35.33568905
A79: 2020-03-12T17:00:00 | B79: 2 | C79: Valle d'Aosta | D79: 7 | E79: 0 | F79: 7 | G79: 19 | H79: 26 | I79: 7 | J79: 7 | K79: 0 | L79: 1 | M79: 27 | N79: 118 | O79: 15 | P79: 15 | S79: =M79*100/M1312 -> 0.1786541388 | T79: 5 | W79: 7 | X79: 19 | Y79: 0.962962963 | Z79: 0 | AA79: 0.03703703704 | AB79: =L79*100/B$1285 -> 35.33568905
A80: 2020-03-13T17:00:00 | B80: 2 | C80: Valle d'Aosta | D80: 6 | E80: 0 | F80: 6 | G80: 21 | H80: 27 | I80: 1 | J80: 1 | K80: 0 | L80: 1 | M80: 28 | N80: 189 | O80: 15 | P80: 15 | S80: =M80*100/M1313 -> 0.1585503964 | T80: -6 | W80: 1 | X80: 71 | Y80: 0.9642857143 | Z80: 0 | AA80: 0.03571428571 | AB80: =L80*100/B$1285 -> 35.33568905
A81: 2020-03-14T17:00:00 | B81: 2 | C81: Valle d'Aosta | D81: 12 | E81: 0 | F81: 12 | G81: 29 | H81: 41 | I81: 14 | J81: 14 | K81: 0 | L81: 1 | M81: 42 | N81: 231 | O81: 42 | P81: x2 | Q81: 42 | S81: =M81*100/M1314 -> 0.1985158576 | T81: 13 | W81: 14 | X81: 42 | Y81: 0.9761904762 | Z81: 0 | AA81: 0.02380952381 | AB81: =L81*100/B$1285 -> 35.33568905
A82: 2020-03-15T17:00:00 | B82: 2 | C82: Valle d'Aosta | D82: 10 | E82: 3 | F82: 13 | G82: 43 | H82: 56 | I82: 15 | J82: 15 | K82: 0 | L82: 1 | M82: 57 | N82: 230 | O82: 42 | P82: 42 | S82: =M82*100/M1315 -> 0.2303309492 | T82: 1 | W82: 15 | X82: -1 | Y82: 0.9824561404 | Z82: 0 | AA82: 0.01754385965 | AB82: =L82*100/B$1285 -> 35.33568905
A83: 2020-03-16T17:00:00 | B83: 2 | C83: Valle d'Aosta | D83: 28 | E83: 5 | F83: 33 | G83: 70 | H83: 103 | I83: 47 | J83: 47 | K83: 0 | L83: 2 | M83: 105 | N83: 287 | O83: 105 | P83: x2 | Q83: 105 | S83: =M83*100/M1316 -> 0.3752680486 | T83: 32 | V83: 1 | W83: 48 | X83: 57 | Y83: 0.980952381 | Z83: 0 | AA83: 0.01904761905 | AB83: =L83*100/B$1285 -> 70.67137809
A84: 2020-03-17T17:00:00 | B84: 2 | C84: Valle d'Aosta | D84: 35 | E84: 6 | F84: 41 | G84: 93 | H84: 134 | I84: 31 | J84: 31 | K84: 0 | L84: 2 | M84: 136 | N84: 398 | O84: 105 | P84: 105 | S84: =M84*100/M1317 -> 0.4316638101 | T84: -16 | W84: 31 | X84: 111 | Y84: 0.9852941176 | Z84: 0 | AA84: 0.01470588235 | AB84: =L84*100/B$1285 -> 70.67137809
A85: 2020-03-18T17:00:00 | B85: 2 | C85: Valle d'Aosta | D85: 41 | E85: 3 | F85: 44 | G85: 118 | H85: 162 | I85: 28 | J85: 28 | K85: 0 | L85: 3 | M85: 165 | N85: 486 | O85: 105 | P85: 105 | S85: =M85*100/M1318 -> 0.4620166326 | T85: -3 | V85: 1 | W85: 29 | X85: 88 | Y85: 0.9818181818 | Z85: 0 | AA85: 0.01818181818 | AB85: =L85*100/B$1285 -> 106.0070671
A86: 2020-03-19T17:00:00 | B86: 2 | C86: Valle d'Aosta | D86: 47 | E86: 9 | F86: 56 | G86: 153 | H86: 209 | I86: 47 | J86: 47 | K86: 0 | L86: 6 | M86: 215 | N86: 608 | O86: 215 | P86: x2 | Q86: 215 | S86: =M86*100/M1319 -> 0.5239429755 | T86: 19 | V86: 3 | W86: 50 | X86: 122 | Y86: 0.9720930233 | Z86: 0 | AA86: 0.02790697674 | AB86: =L86*100/B$1285 -> 212.0141343
A87: 2020-03-20T17:00:00 | B87: 2 | C87: Valle d'Aosta | D87: 54 | E87: 9 | F87: 63 | G87: 194 | H87: 257 | I87: 48 | J87: 48 | K87: 0 | L87: 7 | M87: 264 | N87: 814 | O87: 215 | P87: 215 | S87: =M87*100/M1320 -> 0.5614512665 | T87: 1 | V87: 1 | W87: 49 | X87: =IF(N87-N86=0,"",N87-N86) -> 206 | Y87: 0.9734848485 | Z87: 0 | AA87: 0.02651515152 | AB87: =L87*100/B$1285 -> 247.3498233
A88: 2020-03-21T17:00:00 | B88: 2 | C88: Valle d'Aosta | D88: 62 | E88: 15 | F88: 77 | G88: 227 | H88: 304 | I88: 47 | J88: 47 | K88: 1 | L88: 8 | M88: 313 | N88: 884 | O88: 215 | P88: 215 | S88: =M88*100/M1321 -> 0.5841950054 | T88: -1 | U88: 1 | V88: 1 | W88: =IF(M88-M87=0,"",M88-M87) -> 49 | X88: 70 | Y88: 0.9712460064 | Z88: 0.003194888179 | AA88: 0.02555910543 | AB88: =L88*100/B$1285 -> 282.6855124
A89: 2020-03-22T17:00:00 | B89: 2 | C89: Valle d'Aosta | D89: 63 | E89: 21 | F89: 84 | G89: 270 | H89: 354 | I89: 50 | J89: 50 | K89: 1 | L89: 9 | M89: 364 | N89: 950 | O89: 215 | P89: 215 | S89: =M89*100/M1322 -> 0.6155094863 | T89: 3 | V89: 1 | W89: 51 | X89: 66 | Y89: 0.9725274725 | Z89: 0.002747252747 | AA89: 0.02472527473 | AB89: =L89*100/B$1285 -> 318.0212014
A90: 2020-03-23T17:00:00 | B90: 2 | C90: Valle d'Aosta | D90: 69 | E90: 20 | F90: 89 | G90: 290 | H90: 379 | I90: 25 | J90: 25 | K90: 2 | L90: 12 | M90: 393 | N90: 1098 | O90: 215 | P90: 215 | S90: =M90*100/M1323 -> 0.6147637149 | T90: -25 | U90: 1 | V90: 3 | W90: 29 | X90: 148 | Y90: 0.9643765903 | Z90: 0.005089058524 | AA90: 0.03053435115 | AB90: =L90*100/B$1285 -> 424.0282686
A91: 2020-03-24T17:00:00 | B91: 2 | C91: Valle d'Aosta | D91: 71 | E91: 20 | F91: 91 | G91: 288 | H91: 379 | I91: 0 | J91: 0 | K91: 2 | L91: 19 | M91: 400 | N91: 1180 | O91: 215 | P91: 215 | S91: =M91*100/M1324 -> 0.5782352261 | T91: -25 | V91: 7 | W91: 7 | X91: 82 | Y91: 0.9475 | Z91: 0.005 | AA91: 0.0475 | AB91: =L91*100/B$1285 -> 671.3780919
A92: 2020-03-25T17:00:00 | B92: 2 | C92: Valle d'Aosta | D92: 70 | E92: 25 | F92: 95 | G92: 280 | H92: 375 | I92: -4 | J92: -4 | K92: 2 | L92: 24 | M92: 401 | N92: 1200 | O92: 215 | P92: 215 | S92: =M92*100/M1325 -> 0.5390799344 | T92: -4 | V92: 5 | W92: 1 | X92: 20 | Y92: 0.9351620948 | Z92: 0.004987531172 | AA92: 0.05985037406 | AB92: =L92*100/B$1285 -> 848.0565371
A93: 2020-03-26T17:00:00 | B93: 2 | C93: Valle d'Aosta | D93: 73 | E93: 24 | F93: 97 | G93: 281 | H93: 378 | I93: 3 | J93: 3 | K93: 2 | L93: 28 | M93: 408 | N93: 1203 | O93: 215 | P93: 215 | S93: =M93*100/M1326 -> 0.506586871 | T93: 7 | V93: 4 | W93: 7 | X93: =IF(N93-N92=0,"",N93-N92) -> 3 | Y93: 0.9264705882 | Z93: 0.004901960784 | AA93: 0.06862745098 | AB93: =L93*100/B$1285 -> 989.3992933
A94: 2020-03-27T17:00:00 | B94: 2 | C94: Valle d'Aosta | D94: 91 | E94: 24 | F94: 115 | G94: 298 | H94: 413 | I94: 35 | J94: 44 | K94: 2 | L94: 37 | M94: 452 | N94: 1252 | O94: =IF(P94="x2",M94,O93) -> 452 | P94: =IF(M94>O93*2,"x2",O93) -> x2 | Q94: =IF(P94="x2",M94,"") -> 452 | S94: =M94*100/M1327 -> 0.5225554348 | T94: =IF(J94-J93=0,"",J94-J93) -> 41 | V94: 9 | W94: 44 | X94: 49 | Y94: 0.9137168142 | Z94: 0.004424778761 | AA94: 0.08185840708 | AB94: =L94*100/B$1285 -> 1307.420495
A95: 2020-03-28T17:00:00 | B95: 2 | C95: Valle d'Aosta | D95: 90 | E95: 26 | F95: 116 | G95: 352 | H95: 468 | I95: 55 | J95: 59 | K95: 2 | L95: 41 | M95: 511 | N95: 1380 | O95: 452 | P95: 452 | S95: =M95*100/M1328 -> 0.5525997059 | T95: 15 | V95: 4 | W95: 59 | X95: 128 | Y95: 0.915851272 | Z95: 0.003913894325 | AA95: 0.08023483366 | AB95: =L95*100/B$1285 -> 1448.763251
A96: 2020-03-29T17:00:00 | B96: 2 | C96: Valle d'Aosta | D96: 90 | E96: 26 | F96: 116 | G96: 423 | H96: 539 | I96: 71 | J96: 73 | K96: 2 | L96: 43 | M96: 584 | N96: 1480 | O96: 452 | P96: 452 | S96: =M96*100/M1329 -> 0.5978155166 | T96: 14 | V96: 2 | W96: 73 | X96: 100 | Y96: 0.9229452055 | Z96: 0.003424657534 | AA96: 0.07363013699 | AB96: =L96*100/B$1285 -> 1519.434629
A97: 2020-03-30T17:00:00 | B97: 2 | C97: Valle d'Aosta | D97: 92 | E97: 26 | F97: 118 | G97: 400 | H97: 518 | I97: -21 | J97: 0 | K97: 16 | L97: 50 | M97: 584 | N97: 1536 | O97: 452 | P97: 452 | S97: =M97*100/M1330 -> 0.5740178299 | T97: -73 | U97: 14 | V97: 7 | X97: 56 | Y97: 0.8869863014 | Z97: 0.02739726027 | AA97: 0.08561643836 | AB97: =L97*100/B$1285 -> 1766.784452
A98: 2020-03-31T17:00:00 | B98: 2 | C98: Valle d'Aosta | D98: 91 | E98: 26 | F98: 117 | G98: 435 | H98: 552 | I98: 34 | J98: 44 | K98: 20 | L98: 56 | M98: 628 | N98: 1582 | O98: 452 | P98: 452 | S98: =M98*100/M1331 -> 0.5936176649 | T98: 44 | U98: 4 | V98: 6 | W98: 44 | X98: 46 | Y98: 0.8789808917 | Z98: 0.03184713376 | AA98: 0.08917197452 | AB98: =L98*100/B$1285 -> 1978.798587
A99: 2020-04-01T17:00:00 | B99: 2 | C99: Valle d'Aosta | D99: 85 | E99: 27 | F99: 112 | G99: 428 | H99: 540 | I99: -12 | J99: 3 | K99: 32 | L99: 59 | M99: 631 | N99: 1717 | O99: 452 | P99: 452 | S99: =M99*100/M1332 -> 0.5706585635 | T99: -41 | U99: 12 | V99: 3 | W99: 3 | X99: =IF(N99-N98=0,"",N99-N98) -> 135 | Y99: =IF(M99=0,0,H99/M99) -> 0.8557844691 | Z99: =IF(M99=0,0,K99/M99) -> 0.05071315372 | AA99: =IF(M99=0,0,L99/M99) -> 0.09350237718 | AB99: =L99*100/B$1285 -> 2084.805654
A100: 2020-04-02T17:00:00 | B100: 2 | C100: Valle d'Aosta | D100: 85 | E100: 25 | F100: 110 | G100: 446 | H100: 556 | I100: 16 | J100: 37 | K100: 49 | L100: 63 | M100: 668 | N100: 1934 | O100: =IF(P100="x2",M100,O99) -> 452 | P100: =IF(M100>O99*2,"x2",O99) -> 452 | Q100: =IF(P100="x2",M100,"") ->  | S100: =M100*100/M1333 -> 0.5796497805 | T100: =IF(J100-J99=0,"",J100-J99) -> 34 | U100: =IF(K100-K99=0,"",K100-K99) -> 17 | V100: =IF(L100-L99=0,"",L100-L99) -> 4 | W100: =IF(M100-M99=0,"",M100-M99) -> 37 | X100: 217 | Y100: 0.8323353293 | Z100: 0.07335329341 | AA100: 0.09431137725 | AB100: =L100*100/B$1285 -> 2226.14841
A101: 2020-04-03T17:00:00 | B101: 2 | C101: Valle d'Aosta | D101: 85 | E101: 25 | F101: 110 | G101: 450 | H101: 560 | I101: 4 | J101: 51 | K101: 89 | L101: 70 | M101: 719 | N101: 2106 | O101: =IF(P101="x2",M101,O100) -> 452 | P101: =IF(M101>O100*2,"x2",O100) -> 452 | Q101: =IF(P101="x2",M101,"") ->  | S101: =M101*100/M1334 -> 0.6000317124 | T101: =IF(J101-J100=0,"",J101-J100) -> 14 | U101: =IF(K101-K100=0,"",K101-K100) -> 40 | V101: =IF(L101-L100=0,"",L101-L100) -> 7 | W101: =IF(M101-M100=0,"",M101-M100) -> 51 | X101: 172 | Y101: 0.7788595271 | Z101: 0.123783032 | AA101: 0.09735744089 | AB101: =L101*100/B$1285 -> 2473.498233
A102: 2020-04-04T17:00:00 | B102: 2 | C102: Valle d'Aosta | D102: 63 | E102: 23 | F102: 86 | G102: 474 | H102: 560 | I102: 0 | J102: 29 | K102: 106 | L102: 82 | M102: 748 | N102: 2274 | O102: =IF(P102="x2",M102,O101) -> 452 | P102: =IF(M102>O101*2,"x2",O101) -> 452 | Q102: =IF(P102="x2",M102,"") ->  | S102: =M102*100/M1335 -> 0.6001668913 | T102: =IF(J102-J101=0,"",J102-J101) -> -22 | U102: =IF(K102-K101=0,"",K102-K101) -> 17 | V102: =IF(L102-L101=0,"",L102-L101) -> 12 | W102: =IF(M102-M101=0,"",M102-M101) -> 29 | X102: 168 | Y102: 0.7486631016 | Z102: 0.1417112299 | AA102: 0.1096256684 | AB102: =L102*100/B$1285 -> 2897.526502
A103: 2020-04-05T17:00:00 | B103: 2 | C103: Valle d'Aosta | D103: 96 | E103: 23 | F103: 119 | G103: 457 | H103: 576 | I103: 16 | J103: 34 | K103: 115 | L103: 91 | M103: 782 | N103: 2390 | O103: =IF(P103="x2",M103,O102) -> 452 | P103: =IF(M103>O102*2,"x2",O102) -> 452 | Q103: =IF(P103="x2",M103,"") ->  | S103: =M103*100/M1336 -> 0.6064460092 | T103: =IF(J103-J102=0,"",J103-J102) -> 5 | U103: =IF(K103-K102=0,"",K103-K102) -> 9 | V103: =IF(L103-L102=0,"",L103-L102) -> 9 | W103: =IF(M103-M102=0,"",M103-M102) -> 34 | X103: 116 | Y103: 0.73657289 | Z103: 0.1470588235 | AA103: 0.1163682864 | AB103: =L103*100/B$1285 -> 3215.547703
A104: 2020-04-06T17:00:00 | B104: 2 | C104: Valle d'Aosta | D104: 109 | E104: 21 | F104: 130 | G104: 437 | H104: 567 | I104: -9 | J104: 23 | K104: 142 | L104: 96 | M104: 805 | N104: 2590 | O104: =IF(P104="x2",M104,O103) -> 452 | P104: =IF(M104>O103*2,"x2",O103) -> 452 | Q104: =IF(P104="x2",M104,"") ->  | S104: =M104*100/M1337 -> 0.6073317389 | T104: =IF(J104-J103=0,"",J104-J103) -> -11 | U104: =IF(K104-K103=0,"",K104-K103) -> 27 | V104: =IF(L104-L103=0,"",L104-L103) -> 5 | W104: =IF(M104-M103=0,"",M104-M103) -> 23 | X104: 200 | Y104: 0.7043478261 | Z104: 0.1763975155 | AA104: 0.1192546584 | AB104: =L104*100/B$1285 -> 3392.226148
A105: 2020-04-07T17:00:00 | B105: 2 | C105: Valle d'Aosta | D105: 118 | E105: 17 | F105: 135 | G105: 458 | H105: 593 | I105: 26 | J105: 30 | K105: 142 | L105: 100 | M105: 835 | N105: 2754 | O105: =IF(P105="x2",M105,O104) -> 452 | P105: =IF(M105>O104*2,"x2",O104) -> 452 | Q105: =IF(P105="x2",M105,"") ->  | S105: =M105*100/M1338 -> 0.6158452938 | T105: =IF(J105-J104=0,"",J105-J104) -> 7 | U105: =IF(K105-K104=0,"",K105-K104) ->  | V105: =IF(L105-L104=0,"",L105-L104) -> 4 | W105: =IF(M105-M104=0,"",M105-M104) -> 30 | X105: =IF(N105-N104=0,"",N105-N104) -> 164 | Y105: =IF(M105=0,0,H105/M105) -> 0.7101796407 | Z105: =IF(M105=0,0,K105/M105) -> 0.1700598802 | AA105: =IF(M105=0,0,L105/M105) -> 0.119760479 | AB105: =L105*100/B$1285 -> 3533.568905
A106: 2020-04-08T17:00:00 | B106: 2 | C106: Valle d'Aosta | D106: 120 | E106: 20 | F106: 140 | G106: 466 | H106: 606 | I106: 13 | J106: 15 | K106: 142 | L106: 102 | M106: 850 | N106: 2953 | O106: =IF(P106="x2",M106,O105) -> 452 | P106: =IF(M106>O105*2,"x2",O105) -> 452 | Q106: =IF(P106="x2",M106,"") ->  | S106: =M106*100/M1339 -> 0.6096598815 | T106: =IF(J106-J105=0,"",J106-J105) -> -15 | U106: =IF(K106-K105=0,"",K106-K105) ->  | V106: =IF(L106-L105=0,"",L106-L105) -> 2 | W106: =IF(M106-M105=0,"",M106-M105) -> 15 | X106: =IF(N106-N105=0,"",N106-N105) -> 199 | Y106: =IF(M106=0,0,H106/M106) -> 0.7129411765 | Z106: =IF(M106=0,0,K106/M106) -> 0.1670588235 | AA106: =IF(M106=0,0,L106/M106) -> 0.12 | AB106: =L106*100/B$1285 -> 3604.240283
A107: 2020-04-09T17:00:00 | B107: 2 | C107: Valle d'Aosta | D107: 118 | E107: 18 | F107: 136 | G107: 473 | H107: 609 | I107: 3 | J107: 18 | K107: 154 | L107: 105 | M107: 868 | N107: 3142 | O107: =IF(P107="x2",M107,O106) -> 452 | P107: =IF(M107>O106*2,"x2",O106) -> 452 | Q107: =IF(P107="x2",M107,"") ->  | S107: =M107*100/M1340 -> 0.6043474023 | T107: =IF(J107-J106=0,"",J107-J106) -> 3 | U107: =IF(K107-K106=0,"",K107-K106) -> 12 | V107: =IF(L107-L106=0,"",L107-L106) -> 3 | W107: =IF(M107-M106=0,"",M107-M106) -> 18 | X107: =IF(N107-N106=0,"",N107-N106) -> 189 | Y107: =IF(M107=0,0,H107/M107) -> 0.7016129032 | Z107: =IF(M107=0,0,K107/M107) -> 0.1774193548 | AA107: =IF(M107=0,0,L107/M107) -> 0.1209677419 | AB107: =L107*100/B$1285 -> 3710.24735
A108: 2020-04-10T17:00:00 | B108: 2 | C108: Valle d'Aosta | D108: 131 | E108: 16 | F108: 147 | G108: 455 | H108: 602 | I108: -7 | J108: 11 | K108: 170 | L108: 107 | M108: 879 | N108: 3328 | O108: =IF(P108="x2",M108,O107) -> 452 | P108: =IF(M108>O107*2,"x2",O107) -> 452 | Q108: =IF(P108="x2",M108,"") ->  | S108: =M108*100/M1341 -> 0.5956212689 | T108: =IF(J108-J107=0,"",J108-J107) -> -7 | U108: =IF(K108-K107=0,"",K108-K107) -> 16 | V108: =IF(L108-L107=0,"",L108-L107) -> 2 | W108: =IF(M108-M107=0,"",M108-M107) -> 11 | X108: =IF(N108-N107=0,"",N108-N107) -> 186 | Y108: =IF(M108=0,0,H108/M108) -> 0.6848691695 | Z108: =IF(M108=0,0,K108/M108) -> 0.1934015927 | AA108: =IF(M108=0,0,L108/M108) -> 0.1217292378 | AB108: =L108*100/B$1285 -> 3780.918728
A109: 2020-04-11T17:00:00 | B109: 2 | C109: Valle d'Aosta | D109: 118 | E109: 17 | F109: 135 | G109: 455 | H109: 590 | I109: -12 | J109: 23 | K109: 205 | L109: 107 | M109: 902 | N109: 3464 | O109: =IF(P109="x2",M109,O108) -> 452 | P109: =IF(M109>O108*2,"x2",O108) -> 452 | Q109: =IF(P109="x2",M109,"") ->  | S109: =M109*100/M1342 -> 0.5923649283 | T109: =IF(J109-J108=0,"",J109-J108) -> 12 | U109: =IF(K109-K108=0,"",K109-K108) -> 35 | V109: =IF(L109-L108=0,"",L109-L108) ->  | W109: =IF(M109-M108=0,"",M109-M108) -> 23 | X109: =IF(N109-N108=0,"",N109-N108) -> 136 | Y109: =IF(M109=0,0,H109/M109) -> 0.6541019956 | Z109: =IF(M109=0,0,K109/M109) -> 0.2272727273 | AA109: =IF(M109=0,0,L109/M109) -> 0.1186252772 | AB109: =L109*100/B$1285 -> 3780.918728
A110: 2020-04-12T17:00:00 | B110: 2 | C110: Valle d'Aosta | D110: 109 | E110: 16 | F110: 125 | G110: 463 | H110: 588 | I110: -2 | J110: 19 | K110: 221 | L110: 112 | M110: 921 | N110: 3510 | O110: =IF(P110="x2",M110,O109) -> 921 | P110: =IF(M110>O109*2,"x2",O109) -> x2 | Q110: =IF(P110="x2",M110,"") -> 921 | S110: =M110*100/M1343 -> 0.5890140251 | T110: =IF(J110-J109=0,"",J110-J109) -> -4 | U110: =IF(K110-K109=0,"",K110-K109) -> 16 | V110: =IF(L110-L109=0,"",L110-L109) -> 5 | W110: =IF(M110-M109=0,"",M110-M109) -> 19 | X110: =IF(N110-N109=0,"",N110-N109) -> 46 | Y110: =IF(M110=0,0,H110/M110) -> 0.6384364821 | Z110: =IF(M110=0,0,K110/M110) -> 0.2399565689 | AA110: =IF(M110=0,0,L110/M110) -> 0.121606949 | AB110: =L110*100/B$1285 -> 3957.597173
A111: 2020-04-13T17:00:00 | B111: 2 | C111: Valle d'Aosta | D111: 109 | E111: 15 | F111: 124 | G111: 458 | H111: 582 | I111: -6 | J111: 6 | K111: 230 | L111: 115 | M111: 927 | N111: 3614 | O111: =IF(P111="x2",M111,O110) -> 921 | P111: =IF(M111>O110*2,"x2",O110) -> 921 | Q111: =IF(P111="x2",M111,"") ->  | S111: =M111*100/M1344 -> 0.5811329271 | T111: =IF(J111-J110=0,"",J111-J110) -> -13 | U111: =IF(K111-K110=0,"",K111-K110) -> 9 | V111: =IF(L111-L110=0,"",L111-L110) -> 3 | W111: =IF(M111-M110=0,"",M111-M110) -> 6 | X111: =IF(N111-N110=0,"",N111-N110) -> 104 | Y111: =IF(M111=0,0,H111/M111) -> 0.6278317152 | Z111: =IF(M111=0,0,K111/M111) -> 0.2481121899 | AA111: =IF(M111=0,0,L111/M111) -> 0.1240560949 | AB111: =L111*100/B$1285 -> 4063.60424
A112: 2020-04-14T17:00:00 | B112: 2 | C112: Valle d'Aosta | D112: 112 | E112: 14 | F112: 126 | G112: 433 | H112: 559 | I112: -23 | J112: 20 | K112: 270 | L112: 118 | M112: 947 | N112: 3726 | O112: =IF(P112="x2",M112,O111) -> 921 | P112: =IF(M112>O111*2,"x2",O111) -> 921 | Q112: =IF(P112="x2",M112,"") ->  | S112: =M112*100/M1345 -> 0.5828122692 | T112: =IF(J112-J111=0,"",J112-J111) -> 14 | U112: =IF(K112-K111=0,"",K112-K111) -> 40 | V112: =IF(L112-L111=0,"",L112-L111) -> 3 | W112: =IF(M112-M111=0,"",M112-M111) -> 20 | X112: =IF(N112-N111=0,"",N112-N111) -> 112 | Y112: =IF(M112=0,0,H112/M112) -> 0.5902851109 | Z112: =IF(M112=0,0,K112/M112) -> 0.2851108765 | AA112: =IF(M112=0,0,L112/M112) -> 0.1246040127 | AB112: =L112*100/B$1285 -> 4169.611307
A113: 2020-04-15T17:00:00 | B113: 2 | C113: Valle d'Aosta | D113: 112 | E113: 11 | F113: 123 | G113: 425 | H113: 548 | I113: -11 | J113: 11 | K113: 289 | L113: 121 | M113: 958 | N113: 3894 | O113: =IF(P113="x2",M113,O112) -> 921 | P113: =IF(M113>O112*2,"x2",O112) -> 921 | Q113: =IF(P113="x2",M113,"") ->  | S113: =M113*100/M1346 -> 0.5800611547 | T113: =IF(J113-J112=0,"",J113-J112) -> -9 | U113: =IF(K113-K112=0,"",K113-K112) -> 19 | V113: =IF(L113-L112=0,"",L113-L112) -> 3 | W113: =IF(M113-M112=0,"",M113-M112) -> 11 | X113: =IF(N113-N112=0,"",N113-N112) -> 168 | Y113: =IF(M113=0,0,H113/M113) -> 0.5720250522 | Z113: =IF(M113=0,0,K113/M113) -> 0.3016701461 | AA113: =IF(M113=0,0,L113/M113) -> 0.1263048017 | AB113: =L113*100/B$1285 -> 4275.618375
A114: =A113 + 1 -> 2020-04-16T17:00:00 | P114: Media x2 | Q114: =COUNT(M62:M113) / COUNT(Q62:Q113) -> 5.777777778
A115: =A114+1 -> 2020-04-17T17:00:00
A116: =A115+1 -> 2020-04-18T17:00:00
E117: =E113/$M113 -> 0.0114822547 | H117: =H113/$M113 -> 0.5720250522 | K117: =K113/$M113 -> 0.3016701461 | L117: =L113/$M113 -> 0.1263048017 | N117: =N113/$M113 -> 4.064718163
A121: Data | B121: Codice | C121: Regione | D121: Ricoverati | E121: Terap. Intens. | F121: Ospedalizzati | G121: Quarantena | H121: Positivi | I121: + Positivi | J121: Nuovi | K121: Guariti | L121: Deceduti | M121: Totale | N121: Tamponi | Q121: x 2 | S121: % su Tot. | T121: + Nuovi | U121: + Guariti | V121: + Deceduti | W121: + Totali | X121: + Tamponi | Y121: % Positivi | Z121: % Guariti | AA121: % Deceduti | AB121: P. Stimati
A122: 2020-02-24T18:00:00 | B122: 3 | C122: Lombardia | D122: 76 | E122: 19 | F122: 95 | G122: 71 | H122: 166 | I122: 0 | J122: 166 | K122: 0 | L122: 6 | M122: 172 | N122: 1463 | O122: =M122 -> 172 | Q122: =M122 -> 172 | S122: =M122*100/M1295 -> 75.10917031 | Y122: =IF(M122=0,0,H122/M122) -> 0.9651162791 | Z122: =IF(M122=0,0,K122/M122) -> 0 | AA122: =IF(M122=0,0,L122/M122) -> 0.03488372093 | AB122: =L122*100/B$1285 -> 212.0141343
A123: 2020-02-25T18:00:00 | B123: 3 | C123: Lombardia | D123: 79 | E123: 25 | F123: 104 | G123: 127 | H123: 231 | I123: 65 | J123: 65 | K123: 0 | L123: 9 | M123: 240 | N123: 3700 | O123: =IF(P123="x2",M123,O122) -> 172 | P123: =IF(M123>O122*2,"x2",O122) -> 172 | Q123: =IF(P123="x2",M123,"") ->  | S123: =M123*100/M1296 -> 74.53416149 | T123: =IF(J123-J122=0,"",J123-J122) -> -101 | U123: =IF(K123-K122=0,"",K123-K122) ->  | V123: =IF(L123-L122=0,"",L123-L122) -> 3 | W123: =IF(M123-M122=0,"",M123-M122) -> 68 | X123: =IF(N123-N122=0,"",N123-N122) -> 2237 | Y123: 0.9625 | Z123: 0 | AA123: 0.0375 | AB123: =L123*100/B$1285 -> 318.0212014
A124: 2020-02-26T18:00:00 | B124: 3 | C124: Lombardia | D124: 79 | E124: 25 | F124: 104 | G124: 145 | H124: 249 | I124: 18 | J124: 18 | K124: 0 | L124: 9 | M124: 258 | N124: 3208 | O124: 172 | P124: 172 | S124: =M124*100/M1297 -> 64.5 | T124: -47 | W124: 18 | X124: -492 | Y124: 0.9651162791 | Z124: 0 | AA124: 0.03488372093 | AB124: =L124*100/B$1285 -> 318.0212014
A125: 2020-02-27T18:00:00 | B125: 3 | C125: Lombardia | D125: 172 | E125: 41 | F125: 213 | G125: 136 | H125: 349 | I125: 100 | J125: 100 | K125: 40 | L125: 14 | M125: 403 | N125: 3320 | O125: 403 | P125: x2 | Q125: 403 | S125: =M125*100/M1298 -> 62 | T125: 82 | U125: 40 | V125: 5 | W125: 145 | X125: 112 | Y125: 0.8660049628 | Z125: 0.09925558313 | AA125: 0.03473945409 | AB125: =L125*100/B$1285 -> 494.6996466
A126: 2020-02-28T18:00:00 | B126: 3 | C126: Lombardia | D126: 235 | E126: 47 | F126: 282 | G126: 192 | H126: 474 | I126: 125 | J126: 125 | K126: 40 | L126: 17 | M126: 531 | N126: 4835 | O126: 403 | P126: 403 | S126: =M126*100/M1299 -> 59.7972973 | T126: 25 | V126: 3 | W126: 128 | X126: 1515 | Y126: 0.8926553672 | Z126: 0.07532956685 | AA126: 0.03201506591 | AB126: =L126*100/B$1285 -> 600.7067138
A127: 2020-02-29T17:00:00 | B127: 3 | C127: Lombardia | D127: 256 | E127: 80 | F127: 336 | G127: 216 | H127: 552 | I127: 78 | J127: 78 | K127: 40 | L127: 23 | M127: 615 | N127: 5723 | O127: 403 | P127: 403 | S127: =M127*100/M1300 -> 54.5212766 | T127: -47 | V127: 6 | W127: 84 | X127: 888 | Y127: 0.8975609756 | Z127: 0.06504065041 | AA127: 0.03739837398 | AB127: =L127*100/B$1285 -> 812.7208481
A128: 2020-03-01T17:00:00 | B128: 3 | C128: Lombardia | D128: 406 | E128: 106 | F128: 512 | G128: 375 | H128: 887 | I128: 335 | J128: 335 | K128: 73 | L128: 24 | M128: 984 | N128: 6879 | O128: 984 | P128: x2 | Q128: 984 | S128: =M128*100/M1301 -> 58.08736718 | T128: 257 | U128: 33 | V128: 1 | W128: 369 | X128: 1156 | Y128: 0.9014227642 | Z128: 0.07418699187 | AA128: 0.0243902439 | AB128: =L128*100/B$1285 -> 848.0565371
A129: 2020-03-02T18:00:00 | B129: 3 | C129: Lombardia | D129: 478 | E129: 127 | F129: 605 | G129: 472 | H129: 1077 | I129: 190 | J129: 190 | K129: 139 | L129: 38 | M129: 1254 | N129: 7925 | O129: 984 | P129: 984 | S129: =M129*100/M1302 -> 61.5913556 | T129: -145 | U129: 66 | V129: 14 | W129: 270 | X129: 1046 | Y129: 0.8588516746 | Z129: 0.1108452951 | AA129: 0.0303030303 | AB129: =L129*100/B$1285 -> 1342.756184
A130: 2020-03-03T18:00:00 | B130: 3 | C130: Lombardia | D130: 698 | E130: 167 | F130: 865 | G130: 461 | H130: 1326 | I130: 249 | J130: 249 | K130: 139 | L130: 55 | M130: 1520 | N130: 9577 | O130: 984 | P130: 984 | S130: =M130*100/M1303 -> 60.75139888 | T130: 59 | V130: 17 | W130: 266 | X130: 1652 | Y130: 0.8723684211 | Z130: 0.09144736842 | AA130: 0.03618421053 | AB130: =L130*100/B$1285 -> 1943.462898
A131: 2020-03-04T17:00:00 | B131: 3 | C131: Lombardia | D131: 877 | E131: 209 | F131: 1086 | G131: 411 | H131: 1497 | I131: 171 | J131: 171 | K131: 250 | L131: 73 | M131: 1820 | N131: 12138 | O131: 984 | P131: 984 | S131: =M131*100/M1304 -> 58.91874393 | T131: -78 | U131: 111 | V131: 18 | W131: 300 | X131: 2561 | Y131: 0.8225274725 | Z131: 0.1373626374 | AA131: 0.04010989011 | AB131: =L131*100/B$1285 -> 2579.5053
A132: 2020-03-05T17:00:00 | B132: 3 | C132: Lombardia | D132: 1169 | E132: 244 | F132: 1413 | G132: 364 | H132: 1777 | I132: 280 | J132: 280 | K132: 376 | L132: 98 | M132: 2251 | N132: 12354 | O132: 2251 | P132: x2 | Q132: 2251 | S132: =M132*100/M1305 -> 58.34629342 | T132: 109 | U132: 126 | V132: 25 | W132: 431 | X132: 216 | Y132: 0.7894269214 | Z132: 0.1670368725 | AA132: 0.04353620613 | AB132: =L132*100/B$1285 -> 3462.897527
A133: 2020-03-06T17:00:00 | B133: 3 | C133: Lombardia | D133: 1622 | E133: 309 | F133: 1931 | G133: 77 | H133: 2008 | I133: 231 | J133: 231 | K133: 469 | L133: 135 | M133: 2612 | N133: 13556 | O133: 2251 | P133: 2251 | S133: =M133*100/M1306 -> 56.34167386 | T133: -49 | U133: 93 | V133: 37 | W133: 361 | X133: 1202 | Y133: 0.7687595712 | Z133: 0.1795558959 | AA133: 0.05168453292 | AB133: =L133*100/B$1285 -> 4770.318021
A134: 2020-03-07T18:00:00 | B134: 3 | C134: Lombardia | D134: 1661 | E134: 359 | F134: 2020 | G134: 722 | H134: 2742 | I134: 734 | J134: 734 | K134: 524 | L134: 154 | M134: 3420 | N134: 15778 | O134: 2251 | P134: 2251 | S134: =M134*100/M1307 -> 58.1336053 | T134: 503 | U134: 55 | V134: 19 | W134: 808 | X134: 2222 | Y134: 0.801754386 | Z134: 0.1532163743 | AA134: 0.04502923977 | AB134: =L134*100/B$1285 -> 5441.696113
A135: 2020-03-08T18:00:00 | B135: 3 | C135: Lombardia | D135: 2217 | E135: 399 | F135: 2616 | G135: 756 | H135: 3372 | I135: 630 | J135: 630 | K135: 550 | L135: 267 | M135: 4189 | N135: 18534 | O135: 2251 | P135: 2251 | S135: =M135*100/M1308 -> 56.8 | T135: -104 | U135: 26 | V135: 113 | W135: 769 | X135: 2756 | Y135: 0.8049653855 | Z135: 0.1312962521 | AA135: 0.06373836238 | AB135: =L135*100/B$1285 -> 9434.628975
A136: 2020-03-09T18:00:00 | B136: 3 | C136: Lombardia | D136: 2802 | E136: 440 | F136: 3242 | G136: 1248 | H136: 4490 | I136: 1118 | J136: 1118 | K136: 646 | L136: 333 | M136: 5469 | N136: 20135 | O136: 5469 | P136: x2 | Q136: 5469 | S136: =M136*100/M1309 -> 59.62712604 | T136: 488 | U136: 96 | V136: 66 | W136: 1280 | X136: 1601 | Y136: 0.8209910404 | Z136: 0.1181203145 | AA136: 0.06088864509 | AB136: =L136*100/B$1285 -> 11766.78445
A137: 2020-03-10T18:00:00 | B137: 3 | C137: Lombardia | D137: 3319 | E137: 466 | F137: 3785 | G137: 642 | H137: 4427 | I137: -63 | J137: -63 | K137: 896 | L137: 468 | M137: 5791 | N137: 21479 | O137: 5469 | P137: 5469 | S137: =M137*100/M1310 -> 57.05980885 | T137: -1181 | U137: 250 | V137: 135 | W137: 322 | X137: 1344 | Y137: 0.7644620964 | Z137: 0.1547228458 | AA137: 0.08081505785 | AB137: =L137*100/B$1285 -> 16537.10247
A138: 2020-03-11T17:00:00 | B138: 3 | C138: Lombardia | D138: 3852 | E138: 560 | F138: 4412 | G138: 1351 | H138: 5763 | I138: 1336 | J138: 1336 | K138: 900 | L138: 617 | M138: 7280 | N138: 25629 | O138: 5469 | P138: 5469 | S138: =M138*100/M1311 -> 58.41758947 | T138: 1399 | U138: 4 | V138: 149 | W138: 1489 | X138: 4150 | Y138: 0.7916208791 | Z138: 0.1236263736 | AA138: 0.08475274725 | AB138: =L138*100/B$1285 -> 21802.12014
A139: 2020-03-12T17:00:00 | B139: 3 | C139: Lombardia | D139: 4247 | E139: 605 | F139: 4852 | G139: 2044 | H139: 6896 | I139: 1133 | J139: 1133 | K139: 1085 | L139: 744 | M139: 8725 | N139: 29534 | O139: 5469 | P139: 5469 | S139: =M139*100/M1312 -> 57.73175412 | T139: -203 | U139: 185 | V139: 127 | W139: 1445 | X139: 3905 | Y139: 0.7903724928 | Z139: 0.1243553009 | AA139: 0.0852722063 | AB139: =L139*100/B$1285 -> 26289.75265
A140: 2020-03-13T17:00:00 | B140: 3 | C140: Lombardia | D140: 4435 | E140: 650 | F140: 5085 | G140: 2647 | H140: 7732 | I140: 836 | J140: 836 | K140: 1198 | L140: 890 | M140: 9820 | N140: 32700 | O140: 5469 | P140: 5469 | S140: =M140*100/M1313 -> 55.60588901 | T140: -297 | U140: 113 | V140: 146 | W140: 1095 | X140: 3166 | Y140: 0.7873727088 | Z140: 0.1219959267 | AA140: 0.09063136456 | AB140: =L140*100/B$1285 -> 31448.76325
A141: 2020-03-14T17:00:00 | B141: 3 | C141: Lombardia | D141: 4898 | E141: 732 | F141: 5630 | G141: 3429 | H141: 9059 | I141: 1327 | J141: 1327 | K141: 1660 | L141: 966 | M141: 11685 | N141: 37138 | O141: 11685 | P141: x2 | Q141: 11685 | S141: =M141*100/M1314 -> 55.22994754 | T141: 491 | U141: 462 | V141: 76 | W141: 1865 | X141: 4438 | Y141: 0.7752674369 | Z141: 0.1420624733 | AA141: 0.08267008986 | AB141: =L141*100/B$1285 -> 34134.27562
A142: 2020-03-15T17:00:00 | B142: 3 | C142: Lombardia | D142: 5500 | E142: 767 | F142: 6267 | G142: 3776 | H142: 10043 | I142: 984 | J142: 984 | K142: 2011 | L142: 1218 | M142: 13272 | N142: 40369 | O142: 11685 | P142: 11685 | S142: =M142*100/M1315 -> 53.63074312 | T142: -343 | U142: 351 | V142: 252 | W142: 1587 | X142: 3231 | Y142: 0.7567058469 | Z142: 0.1515220012 | AA142: 0.0917721519 | AB142: =L142*100/B$1285 -> 43038.86926
A143: 2020-03-16T17:00:00 | B143: 3 | C143: Lombardia | D143: 6171 | E143: 823 | F143: 6994 | G143: 3867 | H143: 10861 | I143: 818 | J143: 818 | K143: 2368 | L143: 1420 | M143: 14649 | N143: 43565 | O143: 11685 | P143: 11685 | S143: =M143*100/M1316 -> 52.35525375 | T143: -166 | U143: 357 | V143: 202 | W143: 1377 | X143: 3196 | Y143: 0.7414157963 | Z143: 0.1616492593 | AA143: 0.09693494436 | AB143: =L143*100/B$1285 -> 50176.67845
A144: 2020-03-17T17:00:00 | B144: 3 | C144: Lombardia | D144: 6953 | E144: 879 | F144: 7832 | G144: 4263 | H144: 12095 | I144: 1234 | J144: 1234 | K144: 2485 | L144: 1640 | M144: 16220 | N144: 46449 | O144: 11685 | P144: 11685 | S144: =M144*100/M1317 -> 51.48225735 | T144: 416 | U144: 117 | V144: 220 | W144: 1571 | X144: 2884 | Y144: 0.7456843403 | Z144: 0.1532059186 | AA144: 0.1011097411 | AB144: =L144*100/B$1285 -> 57950.53004
A145: 2020-03-18T17:00:00 | B145: 3 | C145: Lombardia | D145: 7285 | E145: 924 | F145: 8209 | G145: 4057 | H145: 12266 | I145: 171 | J145: 171 | K145: 3488 | L145: 1959 | M145: 17713 | N145: 48983 | O145: 11685 | P145: 11685 | S145: =M145*100/M1318 -> 49.59818553 | T145: -1063 | U145: 1003 | V145: 319 | W145: 1493 | X145: 2534 | Y145: 0.6924857449 | Z145: 0.1969175182 | AA145: 0.1105967369 | AB145: =L145*100/B$1285 -> 69222.61484
A146: 2020-03-19T17:00:00 | B146: 3 | C146: Lombardia | D146: 7387 | E146: 1006 | F146: 8393 | G146: 5545 | H146: 13938 | I146: 1672 | J146: 1672 | K146: 3778 | L146: 2168 | M146: 19884 | N146: 52244 | O146: 11685 | P146: 11685 | S146: =M146*100/M1319 -> 48.45619593 | T146: 1501 | U146: 290 | V146: 209 | W146: 2171 | X146: 3261 | Y146: 0.7009656005 | Z146: 0.1900020117 | AA146: 0.1090323878 | AB146: =L146*100/B$1285 -> 76607.77385
A147: 2020-03-20T17:00:00 | B147: 3 | C147: Lombardia | D147: 7735 | E147: 1050 | F147: 8785 | G147: 6635 | H147: 15420 | I147: 1482 | J147: 1482 | K147: 4295 | L147: 2549 | M147: 22264 | N147: 57174 | O147: 11685 | P147: 11685 | S147: =M147*100/M1320 -> 47.3490568 | T147: -190 | U147: 517 | V147: 381 | W147: 2380 | X147: =IF(N147-N146=0,"",N147-N146) -> 4930 | Y147: 0.6925979159 | Z147: 0.1929123248 | AA147: 0.1144897593 | AB147: =L147*100/B$1285 -> 90070.67138
A148: 2020-03-21T17:00:00 | B148: 3 | C148: Lombardia | D148: 8258 | E148: 1093 | F148: 9351 | G148: 8019 | H148: 17370 | I148: 1950 | J148: 1950 | K148: 5050 | L148: 3095 | M148: 25515 | N148: 66730 | O148: 25515 | P148: x2 | Q148: 25515 | S148: =M148*100/M1321 -> 47.62215835 | T148: 468 | U148: 755 | V148: 546 | W148: =IF(M148-M147=0,"",M148-M147) -> 3251 | X148: 9556 | Y148: 0.6807760141 | Z148: 0.1979227905 | AA148: 0.1213011954 | AB148: =L148*100/B$1285 -> 109363.9576
A149: 2020-03-22T17:00:00 | B149: 3 | C149: Lombardia | D149: 9439 | E149: 1142 | F149: 10581 | G149: 7304 | H149: 17885 | I149: 515 | J149: 515 | K149: 5865 | L149: 3456 | M149: 27206 | N149: 70598 | O149: 25515 | P149: 25515 | S149: =M149*100/M1322 -> 46.00426122 | T149: -1435 | U149: 815 | V149: 361 | W149: 1691 | X149: 3868 | Y149: 0.6573917518 | Z149: 0.2155774462 | AA149: 0.127030802 | AB149: =L149*100/B$1285 -> 122120.1413
A150: 2020-03-23T17:00:00 | B150: 3 | C150: Lombardia | D150: 9266 | E150: 1183 | F150: 10449 | G150: 8461 | H150: 18910 | I150: 1025 | J150: 1025 | K150: 6075 | L150: 3776 | M150: 28761 | N150: 73242 | O150: 25515 | P150: 25515 | S150: =M150*100/M1323 -> 44.99037965 | T150: 510 | U150: 210 | V150: 320 | W150: 1555 | X150: 2644 | Y150: 0.65748757 | Z150: 0.2112235319 | AA150: 0.1312888982 | AB150: =L150*100/B$1285 -> 133427.5618
A151: 2020-03-24T17:00:00 | B151: 3 | C151: Lombardia | D151: 9711 | E151: 1194 | F151: 10905 | G151: 8963 | H151: 19868 | I151: 958 | J151: 958 | K151: 6657 | L151: 4178 | M151: 30703 | N151: 76695 | O151: 25515 | P151: 25515 | S151: =M151*100/M1324 -> 44.38389037 | T151: -67 | U151: 582 | V151: 402 | W151: 1942 | X151: 3453 | Y151: 0.647102889 | Z151: 0.2168192033 | AA151: 0.1360779077 | AB151: =L151*100/B$1285 -> 147632.5088
A152: 2020-03-25T17:00:00 | B152: 3 | C152: Lombardia | D152: 10026 | E152: 1236 | F152: 11262 | G152: 9329 | H152: 20591 | I152: 723 | J152: 723 | K152: 7281 | L152: 4474 | M152: 32346 | N152: 81666 | O152: 25515 | P152: 25515 | S152: =M152*100/M1325 -> 43.48398892 | T152: -235 | U152: 624 | V152: 296 | W152: 1643 | X152: 4971 | Y152: 0.6365856675 | Z152: 0.2250973845 | AA152: 0.138316948 | AB152: =L152*100/B$1285 -> 158091.8728
A153: 2020-03-26T17:00:00 | B153: 3 | C153: Lombardia | D153: 10681 | E153: 1263 | F153: 11944 | G153: 10245 | H153: 22189 | I153: 1598 | J153: 1598 | K153: 7839 | L153: 4861 | M153: 34889 | N153: 87713 | O153: 25515 | P153: 25515 | S153: =M153*100/M1326 -> 43.31938564 | T153: 875 | U153: 558 | V153: 387 | W153: 2543 | X153: =IF(N153-N152=0,"",N153-N152) -> 6047 | Y153: 0.6359884204 | Z153: 0.2246839978 | AA153: 0.1393275818 | AB153: =L153*100/B$1285 -> 171766.7845
A154: 2020-03-27T17:00:00 | B154: 3 | C154: Lombardia | D154: 11137 | E154: 1292 | F154: 12429 | G154: 11466 | H154: 23895 | I154: 1706 | J154: 2409 | K154: 8001 | L154: 5402 | M154: 37298 | N154: 95860 | O154: =IF(P154="x2",M154,O153) -> 25515 | P154: =IF(M154>O153*2,"x2",O153) -> 25515 | Q154: =IF(P154="x2",M154,"") ->  | S154: =M154*100/M1327 -> 43.12007214 | T154: =IF(J154-J153=0,"",J154-J153) -> 811 | U154: 162 | V154: 541 | W154: 2409 | X154: 8147 | Y154: 0.6406509732 | Z154: 0.2145155236 | AA154: 0.1448335031 | AB154: =L154*100/B$1285 -> 190883.3922
A155: 2020-03-28T17:00:00 | B155: 3 | C155: Lombardia | D155: 11152 | E155: 1319 | F155: 12471 | G155: 12038 | H155: 24509 | I155: 614 | J155: 2117 | K155: 8962 | L155: 5944 | M155: 39415 | N155: 102503 | O155: 25515 | P155: 25515 | S155: =M155*100/M1328 -> 42.62371312 | T155: -292 | U155: 961 | V155: 542 | W155: 2117 | X155: 6643 | Y155: 0.6218191044 | Z155: 0.2273753647 | AA155: 0.1508055309 | AB155: =L155*100/B$1285 -> 210035.3357
A156: 2020-03-29T17:00:00 | B156: 3 | C156: Lombardia | D156: 11613 | E156: 1328 | F156: 12941 | G156: 12451 | H156: 25392 | I156: 883 | J156: 1592 | K156: 9255 | L156: 6360 | M156: 41007 | N156: 107398 | O156: 25515 | P156: 25515 | S156: =M156*100/M1329 -> 41.97709056 | T156: -525 | U156: 293 | V156: 416 | W156: 1592 | X156: 4895 | Y156: 0.6192113542 | Z156: 0.2256931743 | AA156: 0.1550954715 | AB156: =L156*100/B$1285 -> 224734.9823
A157: 2020-03-30T17:00:00 | B157: 3 | C157: Lombardia | D157: 11815 | E157: 1330 | F157: 13145 | G157: 11861 | H157: 25006 | I157: -386 | J157: 1154 | K157: 10337 | L157: 6818 | M157: 42161 | N157: 111057 | O157: 25515 | P157: 25515 | S157: =M157*100/M1330 -> 41.44035227 | T157: -438 | U157: 1082 | V157: 458 | W157: 1154 | X157: 3659 | Y157: 0.5931073741 | Z157: 0.245179194 | AA157: 0.1617134318 | AB157: =L157*100/B$1285 -> 240918.7279
A158: 2020-03-31T17:00:00 | B158: 3 | C158: Lombardia | D158: 11883 | E158: 1324 | F158: 13207 | G158: 11917 | H158: 25124 | I158: 118 | J158: 1047 | K158: 10885 | L158: 7199 | M158: 43208 | N158: 114640 | O158: 25515 | P158: 25515 | S158: =M158*100/M1331 -> 40.84240774 | T158: -107 | U158: 548 | V158: 381 | W158: 1047 | X158: 3583 | Y158: 0.5814663951 | Z158: 0.2519209406 | AA158: 0.1666126643 | AB158: =L158*100/B$1285 -> 254381.6254
A159: 2020-04-01T17:00:00 | B159: 3 | C159: Lombardia | D159: 11927 | E159: 1342 | F159: 13269 | G159: 12496 | H159: 25765 | I159: 641 | J159: 1565 | K159: 11415 | L159: 7593 | M159: 44773 | N159: 121449 | O159: 25515 | P159: 25515 | S159: =M159*100/M1332 -> 40.4914356 | T159: 518 | U159: 530 | V159: 394 | W159: 1565 | X159: =IF(N159-N158=0,"",N159-N158) -> 6809 | Y159: =IF(M159=0,0,H159/M159) -> 0.5754584236 | Z159: =IF(M159=0,0,K159/M159) -> 0.2549527617 | AA159: =IF(M159=0,0,L159/M159) -> 0.1695888147 | AB159: =L159*100/B$1285 -> 268303.8869
A160: 2020-04-02T17:00:00 | B160: 3 | C160: Lombardia | D160: 11762 | E160: 1351 | F160: 13113 | G160: 12763 | H160: 25876 | I160: 111 | J160: 1292 | K160: 12229 | L160: 7960 | M160: 46065 | N160: 128286 | O160: =IF(P160="x2",M160,O159) -> 25515 | P160: =IF(M160>O159*2,"x2",O159) -> 25515 | Q160: =IF(P160="x2",M160,"") ->  | S160: =M160*100/M1333 -> 39.97240589 | T160: =IF(J160-J159=0,"",J160-J159) -> -273 | U160: =IF(K160-K159=0,"",K160-K159) -> 814 | V160: =IF(L160-L159=0,"",L160-L159) -> 367 | W160: =IF(M160-M159=0,"",M160-M159) -> 1292 | X160: 6837 | Y160: 0.5617279931 | Z160: 0.2654727016 | AA160: 0.1727993053 | AB160: =L160*100/B$1285 -> 281272.0848
A161: 2020-04-03T17:00:00 | B161: 3 | C161: Lombardia | D161: 11802 | E161: 1381 | F161: 13183 | G161: 13006 | H161: 26189 | I161: 313 | J161: 1455 | K161: 13020 | L161: 8311 | M161: 47520 | N161: 135051 | O161: =IF(P161="x2",M161,O160) -> 25515 | P161: =IF(M161>O160*2,"x2",O160) -> 25515 | Q161: =IF(P161="x2",M161,"") ->  | S161: =M161*100/M1334 -> 39.65717242 | T161: =IF(J161-J160=0,"",J161-J160) -> 163 | U161: =IF(K161-K160=0,"",K161-K160) -> 791 | V161: =IF(L161-L160=0,"",L161-L160) -> 351 | W161: =IF(M161-M160=0,"",M161-M160) -> 1455 | X161: 6765 | Y161: 0.5511153199 | Z161: 0.273989899 | AA161: 0.1748947811 | AB161: =L161*100/B$1285 -> 293674.9117
A162: 2020-04-04T17:00:00 | B162: 3 | C162: Lombardia | D162: 12002 | E162: 1326 | F162: 13328 | G162: 13892 | H162: 27220 | I162: 1031 | J162: 1598 | K162: 13242 | L162: 8656 | M162: 49118 | N162: 141877 | O162: =IF(P162="x2",M162,O161) -> 25515 | P162: =IF(M162>O161*2,"x2",O161) -> 25515 | Q162: =IF(P162="x2",M162,"") ->  | S162: =M162*100/M1335 -> 39.41042429 | T162: =IF(J162-J161=0,"",J162-J161) -> 143 | U162: =IF(K162-K161=0,"",K162-K161) -> 222 | V162: =IF(L162-L161=0,"",L162-L161) -> 345 | W162: =IF(M162-M161=0,"",M162-M161) -> 1598 | X162: 6826 | Y162: 0.5541756586 | Z162: 0.2695956676 | AA162: 0.1762286738 | AB162: =L162*100/B$1285 -> 305865.7244
A163: 2020-04-05T17:00:00 | B163: 3 | C163: Lombardia | D163: 12009 | E163: 1317 | F163: 13326 | G163: 14798 | H163: 28124 | I163: 904 | J163: 1337 | K163: 13426 | L163: 8905 | M163: 50455 | N163: 149984 | O163: =IF(P163="x2",M163,O162) -> 25515 | P163: =IF(M163>O162*2,"x2",O162) -> 25515 | Q163: =IF(P163="x2",M163,"") ->  | S163: =M163*100/M1336 -> 39.1281757 | T163: =IF(J163-J162=0,"",J163-J162) -> -261 | U163: =IF(K163-K162=0,"",K163-K162) -> 184 | V163: =IF(L163-L162=0,"",L163-L162) -> 249 | W163: =IF(M163-M162=0,"",M163-M162) -> 1337 | X163: 8107 | Y163: 0.5574075909 | Z163: 0.2660985036 | AA163: 0.1764939055 | AB163: =L163*100/B$1285 -> 314664.311
A164: 2020-04-06T17:00:00 | B164: 3 | C164: Lombardia | D164: 11914 | E164: 1343 | F164: 13257 | G164: 15212 | H164: 28469 | I164: 345 | J164: 1079 | K164: 13863 | L164: 9202 | M164: 51534 | N164: 154989 | O164: =IF(P164="x2",M164,O163) -> 51534 | P164: =IF(M164>O163*2,"x2",O163) -> x2 | Q164: =IF(P164="x2",M164,"") -> 51534 | S164: =M164*100/M1337 -> 38.87979358 | T164: =IF(J164-J163=0,"",J164-J163) -> -258 | U164: =IF(K164-K163=0,"",K164-K163) -> 437 | V164: =IF(L164-L163=0,"",L164-L163) -> 297 | W164: =IF(M164-M163=0,"",M164-M163) -> 1079 | X164: 5005 | Y164: 0.5524314045 | Z164: 0.2690068693 | AA164: 0.1785617262 | AB164: =L164*100/B$1285 -> 325159.0106
A165: 2020-04-07T17:00:00 | B165: 3 | C165: Lombardia | D165: 11833 | E165: 1305 | F165: 13138 | G165: 15205 | H165: 28343 | I165: -126 | J165: 791 | K165: 14498 | L165: 9484 | M165: 52325 | N165: 159331 | O165: =IF(P165="x2",M165,O164) -> 51534 | P165: =IF(M165>O164*2,"x2",O164) -> 51534 | Q165: =IF(P165="x2",M165,"") ->  | S165: =M165*100/M1338 -> 38.59174251 | T165: =IF(J165-J164=0,"",J165-J164) -> -288 | U165: =IF(K165-K164=0,"",K165-K164) -> 635 | V165: =IF(L165-L164=0,"",L165-L164) -> 282 | W165: =IF(M165-M164=0,"",M165-M164) -> 791 | X165: =IF(N165-N164=0,"",N165-N164) -> 4342 | Y165: =IF(M165=0,0,H165/M165) -> 0.5416722408 | Z165: =IF(M165=0,0,K165/M165) -> 0.2770759675 | AA165: =IF(M165=0,0,L165/M165) -> 0.1812517917 | AB165: =L165*100/B$1285 -> 335123.6749
A166: 2020-04-08T17:00:00 | B166: 3 | C166: Lombardia | D166: 11719 | E166: 1257 | F166: 12976 | G166: 15569 | H166: 28545 | I166: 202 | J166: 1089 | K166: 15147 | L166: 9722 | M166: 53414 | N166: 167557 | O166: =IF(P166="x2",M166,O165) -> 51534 | P166: =IF(M166>O165*2,"x2",O165) -> 51534 | Q166: =IF(P166="x2",M166,"") ->  | S166: =M166*100/M1339 -> 38.31102695 | T166: =IF(J166-J165=0,"",J166-J165) -> 298 | U166: =IF(K166-K165=0,"",K166-K165) -> 649 | V166: =IF(L166-L165=0,"",L166-L165) -> 238 | W166: =IF(M166-M165=0,"",M166-M165) -> 1089 | X166: =IF(N166-N165=0,"",N166-N165) -> 8226 | Y166: =IF(M166=0,0,H166/M166) -> 0.5344104542 | Z166: =IF(M166=0,0,K166/M166) -> 0.2835773393 | AA166: =IF(M166=0,0,L166/M166) -> 0.1820122065 | AB166: =L166*100/B$1285 -> 343533.5689
A167: 2020-04-09T17:00:00 | B167: 3 | C167: Lombardia | D167: 11796 | E167: 1236 | F167: 13032 | G167: 16042 | H167: 29074 | I167: 529 | J167: 1388 | K167: 15706 | L167: 10022 | M167: 54802 | N167: 176953 | O167: =IF(P167="x2",M167,O166) -> 51534 | P167: =IF(M167>O166*2,"x2",O166) -> 51534 | Q167: =IF(P167="x2",M167,"") ->  | S167: =M167*100/M1340 -> 38.15604417 | T167: =IF(J167-J166=0,"",J167-J166) -> 299 | U167: =IF(K167-K166=0,"",K167-K166) -> 559 | V167: =IF(L167-L166=0,"",L167-L166) -> 300 | W167: =IF(M167-M166=0,"",M167-M166) -> 1388 | X167: =IF(N167-N166=0,"",N167-N166) -> 9396 | Y167: =IF(M167=0,0,H167/M167) -> 0.5305280829 | Z167: =IF(M167=0,0,K167/M167) -> 0.2865953797 | AA167: =IF(M167=0,0,L167/M167) -> 0.1828765374 | AB167: =L167*100/B$1285 -> 354134.2756
A168: 2020-04-10T17:00:00 | B168: 3 | C168: Lombardia | D168: 11877 | E168: 1202 | F168: 13079 | G168: 16451 | H168: 29530 | I168: 456 | J168: 1246 | K168: 16280 | L168: 10238 | M168: 56048 | N168: 186325 | O168: =IF(P168="x2",M168,O167) -> 51534 | P168: =IF(M168>O167*2,"x2",O167) -> 51534 | Q168: =IF(P168="x2",M168,"") ->  | S168: =M168*100/M1341 -> 37.97881784 | T168: =IF(J168-J167=0,"",J168-J167) -> -142 | U168: =IF(K168-K167=0,"",K168-K167) -> 574 | V168: =IF(L168-L167=0,"",L168-L167) -> 216 | W168: =IF(M168-M167=0,"",M168-M167) -> 1246 | X168: =IF(N168-N167=0,"",N168-N167) -> 9372 | Y168: =IF(M168=0,0,H168/M168) -> 0.5268698259 | Z168: =IF(M168=0,0,K168/M168) -> 0.2904653154 | AA168: =IF(M168=0,0,L168/M168) -> 0.1826648587 | AB168: =L168*100/B$1285 -> 361766.7845
A169: 2020-04-11T17:00:00 | B169: 3 | C169: Lombardia | D169: 12026 | E169: 1174 | F169: 13200 | G169: 17058 | H169: 30258 | I169: 728 | J169: 1544 | K169: 16823 | L169: 10511 | M169: 57592 | N169: 196302 | O169: =IF(P169="x2",M169,O168) -> 51534 | P169: =IF(M169>O168*2,"x2",O168) -> 51534 | Q169: =IF(P169="x2",M169,"") ->  | S169: =M169*100/M1342 -> 37.82204097 | T169: =IF(J169-J168=0,"",J169-J168) -> 298 | U169: =IF(K169-K168=0,"",K169-K168) -> 543 | V169: =IF(L169-L168=0,"",L169-L168) -> 273 | W169: =IF(M169-M168=0,"",M169-M168) -> 1544 | X169: =IF(N169-N168=0,"",N169-N168) -> 9977 | Y169: =IF(M169=0,0,H169/M169) -> 0.5253854702 | Z169: =IF(M169=0,0,K169/M169) -> 0.2921065426 | AA169: =IF(M169=0,0,L169/M169) -> 0.1825079872 | AB169: =L169*100/B$1285 -> 371413.4276
A170: 2020-04-12T17:00:00 | B170: 3 | C170: Lombardia | D170: 11969 | E170: 1176 | F170: 13145 | G170: 18120 | H170: 31265 | I170: 1007 | J170: 1460 | K170: 17166 | L170: 10621 | M170: 59052 | N170: 205832 | O170: =IF(P170="x2",M170,O169) -> 51534 | P170: =IF(M170>O169*2,"x2",O169) -> 51534 | Q170: =IF(P170="x2",M170,"") ->  | S170: =M170*100/M1343 -> 37.76596765 | T170: =IF(J170-J169=0,"",J170-J169) -> -84 | U170: =IF(K170-K169=0,"",K170-K169) -> 343 | V170: =IF(L170-L169=0,"",L170-L169) -> 110 | W170: =IF(M170-M169=0,"",M170-M169) -> 1460 | X170: =IF(N170-N169=0,"",N170-N169) -> 9530 | Y170: =IF(M170=0,0,H170/M170) -> 0.5294486216 | Z170: =IF(M170=0,0,K170/M170) -> 0.2906929486 | AA170: =IF(M170=0,0,L170/M170) -> 0.1798584299 | AB170: =L170*100/B$1285 -> 375300.3534
A171: 2020-04-13T17:00:00 | B171: 3 | C171: Lombardia | D171: 12028 | E171: 1143 | F171: 13171 | G171: 18764 | H171: 31935 | I171: 670 | J171: 1262 | K171: 17478 | L171: 10901 | M171: 60314 | N171: 211092 | O171: =IF(P171="x2",M171,O170) -> 51534 | P171: =IF(M171>O170*2,"x2",O170) -> 51534 | Q171: =IF(P171="x2",M171,"") ->  | S171: =M171*100/M1344 -> 37.81062715 | T171: =IF(J171-J170=0,"",J171-J170) -> -198 | U171: =IF(K171-K170=0,"",K171-K170) -> 312 | V171: =IF(L171-L170=0,"",L171-L170) -> 280 | W171: =IF(M171-M170=0,"",M171-M170) -> 1262 | X171: =IF(N171-N170=0,"",N171-N170) -> 5260 | Y171: =IF(M171=0,0,H171/M171) -> 0.5294790596 | Z171: =IF(M171=0,0,K171/M171) -> 0.2897834665 | AA171: =IF(M171=0,0,L171/M171) -> 0.1807374739 | AB171: =L171*100/B$1285 -> 385194.3463
A172: 2020-04-14T17:00:00 | B172: 3 | C172: Lombardia | D172: 12077 | E172: 1122 | F172: 13199 | G172: 19164 | H172: 32363 | I172: 428 | J172: 1012 | K172: 17821 | L172: 11142 | M172: 61326 | N172: 214870 | O172: =IF(P172="x2",M172,O171) -> 51534 | P172: =IF(M172>O171*2,"x2",O171) -> 51534 | Q172: =IF(P172="x2",M172,"") ->  | S172: =M172*100/M1345 -> 37.74186401 | T172: =IF(J172-J171=0,"",J172-J171) -> -250 | U172: =IF(K172-K171=0,"",K172-K171) -> 343 | V172: =IF(L172-L171=0,"",L172-L171) -> 241 | W172: =IF(M172-M171=0,"",M172-M171) -> 1012 | X172: =IF(N172-N171=0,"",N172-N171) -> 3778 | Y172: =IF(M172=0,0,H172/M172) -> 0.5277207057 | Z172: =IF(M172=0,0,K172/M172) -> 0.2905945276 | AA172: =IF(M172=0,0,L172/M172) -> 0.1816847667 | AB172: =L172*100/B$1285 -> 393710.2473
A173: 2020-04-15T17:00:00 | B173: 3 | C173: Lombardia | D173: 12043 | E173: 1074 | F173: 13117 | G173: 19804 | H173: 32921 | I173: 558 | J173: 827 | K173: 17855 | L173: 11377 | M173: 62153 | N173: 221968 | O173: =IF(P173="x2",M173,O172) -> 51534 | P173: =IF(M173>O172*2,"x2",O172) -> 51534 | Q173: =IF(P173="x2",M173,"") ->  | S173: =M173*100/M1346 -> 37.63313251 | T173: =IF(J173-J172=0,"",J173-J172) -> -185 | U173: =IF(K173-K172=0,"",K173-K172) -> 34 | V173: =IF(L173-L172=0,"",L173-L172) -> 235 | W173: =IF(M173-M172=0,"",M173-M172) -> 827 | X173: =IF(N173-N172=0,"",N173-N172) -> 7098 | Y173: =IF(M173=0,0,H173/M173) -> 0.5296767654 | Z173: =IF(M173=0,0,K173/M173) -> 0.2872749505 | AA173: =IF(M173=0,0,L173/M173) -> 0.1830482841 | AB173: =L173*100/B$1285 -> 402014.1343
A174: =A173 + 1 -> 2020-04-16T17:00:00 | P174: Media x2 | Q174: =COUNT(M122:M173) / COUNT(Q122:Q173) -> 6.5
A175: =A174+1 -> 2020-04-17T17:00:00
A176: =A175+1 -> 2020-04-18T17:00:00
E177: =E173/$M173 -> 0.01727993822 | H177: =H173/$M173 -> 0.5296767654 | K177: =K173/$M173 -> 0.2872749505 | L177: =L173/$M173 -> 0.1830482841 | N177: =N173/$M173 -> 3.571315946
A181: Data | B181: Codice | C181: Regione | D181: Ricoverati | E181: Terap. Intens. | F181: Ospedalizzati | G181: Quarantena | H181: Positivi | I181: + Positivi | J181: Nuovi | K181: Guariti | L181: Deceduti | M181: Totale | N181: Tamponi | Q181: x 2 | S181: % su Tot. | T181: + Nuovi | U181: + Guariti | V181: + Deceduti | W181: + Totali | X181: + Tamponi | Y181: % Positivi | Z181: % Guariti | AA181: % Deceduti | AB181: P. Stimati
A182: 2020-02-24T18:00:00 | B182: 4 | C182: P.A. Bolzano | D182: 0 | E182: 0 | F182: 0 | G182: 0 | H182: 0 | I182: 0 | J182: 0 | K182: 0 | L182: 0 | M182: 0 | N182: 1 | O182: =M182 -> 0 | Q182: =M182 -> 0 | S182: =M182*100/M1295 -> 0 | Y182: =IF(M182=0,0,H182/M182) -> 0 | Z182: =IF(M182=0,0,K182/M182) -> 0 | AA182: =IF(M182=0,0,L182/M182) -> 0 | AB182: =L182*100/B$1285 -> 0
A183: 2020-02-25T18:00:00 | B183: 4 | C183: P.A. Bolzano | D183: 1 | E183: 0 | F183: 1 | G183: 0 | H183: 1 | I183: 1 | J183: 1 | K183: 0 | L183: 0 | M183: 1 | N183: 1 | O183: =IF(P183="x2",M183,O182) -> 1 | P183: =IF(M183>O182*2,"x2",O182) -> x2 | Q183: =IF(P183="x2",M183,"") -> 1 | S183: =M183*100/M1296 -> 0.3105590062 | T183: =IF(J183-J182=0,"",J183-J182) -> 1 | U183: =IF(K183-K182=0,"",K183-K182) ->  | V183: =IF(L183-L182=0,"",L183-L182) ->  | W183: =IF(M183-M182=0,"",M183-M182) -> 1 | X183: =IF(N183-N182=0,"",N183-N182) ->  | Y183: 1 | Z183: 0 | AA183: 0 | AB183: =L183*100/B$1285 -> 0
A184: 2020-02-26T18:00:00 | B184: 4 | C184: P.A. Bolzano | D184: 1 | E184: 0 | F184: 1 | G184: 0 | H184: 1 | I184: 0 | J184: 0 | K184: 0 | L184: 0 | M184: 1 | N184: 1 | O184: 1 | P184: 1 | S184: =M184*100/M1297 -> 0.25 | T184: -1 | Y184: 1 | Z184: 0 | AA184: 0 | AB184: =L184*100/B$1285 -> 0
A185: 2020-02-27T18:00:00 | B185: 4 | C185: P.A. Bolzano | D185: 1 | E185: 0 | F185: 1 | G185: 0 | H185: 1 | I185: 0 | J185: 0 | K185: 0 | L185: 0 | M185: 1 | N185: 2 | O185: 1 | P185: 1 | S185: =M185*100/M1298 -> 0.1538461538 | X185: 1 | Y185: 1 | Z185: 0 | AA185: 0 | AB185: =L185*100/B$1285 -> 0
A186: 2020-02-28T18:00:00 | B186: 4 | C186: P.A. Bolzano | D186: 1 | E186: 0 | F186: 1 | G186: 0 | H186: 1 | I186: 0 | J186: 0 | K186: 0 | L186: 0 | M186: 1 | N186: 2 | O186: 1 | P186: 1 | S186: =M186*100/M1299 -> 0.1126126126 | Y186: 1 | Z186: 0 | AA186: 0 | AB186: =L186*100/B$1285 -> 0
A187: 2020-02-29T17:00:00 | B187: 4 | C187: P.A. Bolzano | D187: 1 | E187: 0 | F187: 1 | G187: 0 | H187: 1 | I187: 0 | J187: 0 | K187: 0 | L187: 0 | M187: 1 | N187: 16 | O187: 1 | P187: 1 | S187: =M187*100/M1300 -> 0.08865248227 | X187: 14 | Y187: 1 | Z187: 0 | AA187: 0 | AB187: =L187*100/B$1285 -> 0
A188: 2020-03-01T17:00:00 | B188: 4 | C188: P.A. Bolzano | D188: 1 | E188: 0 | F188: 1 | G188: 0 | H188: 1 | I188: 0 | J188: 0 | K188: 0 | L188: 0 | M188: 1 | N188: 20 | O188: 1 | P188: 1 | S188: =M188*100/M1301 -> 0.05903187721 | X188: 4 | Y188: 1 | Z188: 0 | AA188: 0 | AB188: =L188*100/B$1285 -> 0
A189: 2020-03-02T18:00:00 | B189: 4 | C189: P.A. Bolzano | D189: 1 | E189: 0 | F189: 1 | G189: 0 | H189: 1 | I189: 0 | J189: 0 | K189: 0 | L189: 0 | M189: 1 | N189: 20 | O189: 1 | P189: 1 | S189: =M189*100/M1302 -> 0.04911591356 | Y189: 1 | Z189: 0 | AA189: 0 | AB189: =L189*100/B$1285 -> 0
A190: 2020-03-03T18:00:00 | B190: 4 | C190: P.A. Bolzano | D190: 1 | E190: 0 | F190: 1 | G190: 0 | H190: 1 | I190: 0 | J190: 0 | K190: 0 | L190: 0 | M190: 1 | N190: 20 | O190: 1 | P190: 1 | S190: =M190*100/M1303 -> 0.03996802558 | Y190: 1 | Z190: 0 | AA190: 0 | AB190: =L190*100/B$1285 -> 0
A191: 2020-03-04T17:00:00 | B191: 4 | C191: P.A. Bolzano | D191: 1 | E191: 0 | F191: 1 | G191: 0 | H191: 1 | I191: 0 | J191: 0 | K191: 0 | L191: 0 | M191: 1 | N191: 20 | O191: 1 | P191: 1 | S191: =M191*100/M1304 -> 0.03237293623 | Y191: 1 | Z191: 0 | AA191: 0 | AB191: =L191*100/B$1285 -> 0
A192: 2020-03-05T17:00:00 | B192: 4 | C192: P.A. Bolzano | D192: 1 | E192: 0 | F192: 1 | G192: 0 | H192: 1 | I192: 0 | J192: 0 | K192: 0 | L192: 0 | M192: 1 | N192: 20 | O192: 1 | P192: 1 | S192: =M192*100/M1305 -> 0.02592016589 | Y192: 1 | Z192: 0 | AA192: 0 | AB192: =L192*100/B$1285 -> 0
A193: 2020-03-06T17:00:00 | B193: 4 | C193: P.A. Bolzano | D193: 4 | E193: 0 | F193: 4 | G193: 0 | H193: 4 | I193: 3 | J193: 3 | K193: 0 | L193: 0 | M193: 4 | N193: 36 | O193: 4 | P193: x2 | Q193: 4 | S193: =M193*100/M1306 -> 0.08628127696 | T193: 3 | W193: 3 | X193: 16 | Y193: 1 | Z193: 0 | AA193: 0 | AB193: =L193*100/B$1285 -> 0
A194: 2020-03-07T18:00:00 | B194: 4 | C194: P.A. Bolzano | D194: 8 | E194: 0 | F194: 8 | G194: 1 | H194: 9 | I194: 5 | J194: 5 | K194: 0 | L194: 0 | M194: 9 | N194: 36 | O194: 9 | P194: x2 | Q194: 9 | S194: =M194*100/M1307 -> 0.1529831719 | T194: 2 | W194: 5 | Y194: 1 | Z194: 0 | AA194: 0 | AB194: =L194*100/B$1285 -> 0
A195: 2020-03-08T18:00:00 | B195: 4 | C195: P.A. Bolzano | D195: 8 | E195: 0 | F195: 8 | G195: 1 | H195: 9 | I195: 0 | J195: 0 | K195: 0 | L195: 0 | M195: 9 | N195: 36 | O195: 9 | P195: 9 | S195: =M195*100/M1308 -> 0.1220338983 | T195: -5 | Y195: 1 | Z195: 0 | AA195: 0 | AB195: =L195*100/B$1285 -> 0
A196: 2020-03-09T18:00:00 | B196: 4 | C196: P.A. Bolzano | D196: 8 | E196: 0 | F196: 8 | G196: 1 | H196: 9 | I196: 0 | J196: 0 | K196: 0 | L196: 0 | M196: 9 | N196: 36 | O196: 9 | P196: 9 | S196: =M196*100/M1309 -> 0.09812472743 | Y196: 1 | Z196: 0 | AA196: 0 | AB196: =L196*100/B$1285 -> 0
A197: 2020-03-10T18:00:00 | B197: 4 | C197: P.A. Bolzano | D197: 17 | E197: 1 | F197: 18 | G197: 20 | H197: 38 | I197: 29 | J197: 29 | K197: 0 | L197: 0 | M197: 38 | N197: 36 | O197: 38 | P197: x2 | Q197: 38 | S197: =M197*100/M1310 -> 0.3744211252 | T197: 29 | W197: 29 | Y197: 1 | Z197: 0 | AA197: 0 | AB197: =L197*100/B$1285 -> 0
A198: 2020-03-11T17:00:00 | B198: 4 | C198: P.A. Bolzano | D198: 8 | E198: 4 | F198: 12 | G198: 63 | H198: 75 | I198: 37 | J198: 37 | K198: 0 | L198: 0 | M198: 75 | N198: 75 | O198: 38 | P198: 38 | S198: =M198*100/M1311 -> 0.6018295619 | T198: 8 | W198: 37 | X198: 39 | Y198: 1 | Z198: 0 | AA198: 0 | AB198: =L198*100/B$1285 -> 0
A199: 2020-03-12T17:00:00 | B199: 4 | C199: P.A. Bolzano | D199: 21 | E199: 4 | F199: 25 | G199: 78 | H199: 103 | I199: 28 | J199: 28 | K199: 0 | L199: 1 | M199: 104 | N199: 607 | O199: 104 | P199: x2 | Q199: 104 | S199: =M199*100/M1312 -> 0.6881492755 | T199: -9 | V199: 1 | W199: 29 | X199: 532 | Y199: 0.9903846154 | Z199: 0 | AA199: 0.009615384615 | AB199: =L199*100/B$1285 -> 35.33568905
A200: 2020-03-13T17:00:00 | B200: 4 | C200: P.A. Bolzano | D200: 20 | E200: 5 | F200: 25 | G200: 98 | H200: 123 | I200: 20 | J200: 20 | K200: 0 | L200: 2 | M200: 125 | N200: 811 | O200: 104 | P200: 104 | S200: =M200*100/M1313 -> 0.7078142695 | T200: -8 | V200: 1 | W200: 21 | X200: 204 | Y200: 0.984 | Z200: 0 | AA200: 0.016 | AB200: =L200*100/B$1285 -> 70.67137809
A201: 2020-03-14T17:00:00 | B201: 4 | C201: P.A. Bolzano | D201: 26 | E201: 7 | F201: 33 | G201: 137 | H201: 170 | I201: 47 | J201: 47 | K201: 0 | L201: 3 | M201: 173 | N201: 1135 | O201: 104 | P201: 104 | S201: =M201*100/M1314 -> 0.8176962707 | T201: 27 | V201: 1 | W201: 48 | X201: 324 | Y201: 0.9826589595 | Z201: 0 | AA201: 0.01734104046 | AB201: =L201*100/B$1285 -> 106.0070671
A202: 2020-03-15T17:00:00 | B202: 4 | C202: P.A. Bolzano | D202: 50 | E202: 4 | F202: 54 | G202: 145 | H202: 199 | I202: 29 | J202: 29 | K202: 0 | L202: 5 | M202: 204 | N202: 1497 | O202: 104 | P202: 104 | S202: =M202*100/M1315 -> 0.8243423445 | T202: -18 | V202: 2 | W202: 31 | X202: 362 | Y202: 0.9754901961 | Z202: 0 | AA202: 0.02450980392 | AB202: =L202*100/B$1285 -> 176.6784452
A203: 2020-03-16T17:00:00 | B203: 4 | C203: P.A. Bolzano | D203: 53 | E203: 11 | F203: 64 | G203: 171 | H203: 235 | I203: 36 | J203: 36 | K203: 0 | L203: 6 | M203: 241 | N203: 1740 | O203: 241 | P203: x2 | Q203: 241 | S203: =M203*100/M1316 -> 0.8613295211 | T203: 7 | V203: 1 | W203: 37 | X203: 243 | Y203: 0.9751037344 | Z203: 0 | AA203: 0.02489626556 | AB203: =L203*100/B$1285 -> 212.0141343
A204: 2020-03-17T17:00:00 | B204: 4 | C204: P.A. Bolzano | D204: 71 | E204: 11 | F204: 82 | G204: 200 | H204: 282 | I204: 47 | J204: 47 | K204: 1 | L204: 8 | M204: 291 | N204: 2149 | O204: 241 | P204: 241 | S204: =M204*100/M1317 -> 0.9236335936 | T204: 11 | U204: 1 | V204: 2 | W204: 50 | X204: 409 | Y204: 0.9690721649 | Z204: 0.003436426117 | AA204: 0.02749140893 | AB204: =L204*100/B$1285 -> 282.6855124
A205: 2020-03-18T17:00:00 | B205: 4 | C205: P.A. Bolzano | D205: 79 | E205: 18 | F205: 97 | G205: 269 | H205: 366 | I205: 84 | J205: 84 | K205: 1 | L205: 9 | M205: 376 | N205: 2844 | O205: 241 | P205: 241 | S205: =M205*100/M1318 -> 1.052837902 | T205: 37 | V205: 1 | W205: 85 | X205: 695 | Y205: 0.9734042553 | Z205: 0.002659574468 | AA205: 0.02393617021 | AB205: =L205*100/B$1285 -> 318.0212014
A206: 2020-03-19T17:00:00 | B206: 4 | C206: P.A. Bolzano | D206: 87 | E206: 18 | F206: 105 | G206: 316 | H206: 421 | I206: 55 | J206: 55 | K206: 1 | L206: 14 | M206: 436 | N206: 3568 | O206: 241 | P206: 241 | S206: =M206*100/M1319 -> 1.062507615 | T206: -29 | V206: 5 | W206: 60 | X206: 724 | Y206: 0.9655963303 | Z206: 0.002293577982 | AA206: 0.03211009174 | AB206: =L206*100/B$1285 -> 494.6996466
A207: 2020-03-20T17:00:00 | B207: 4 | C207: P.A. Bolzano | D207: 99 | E207: 24 | F207: 123 | G207: 407 | H207: 530 | I207: 109 | J207: 109 | K207: 1 | L207: 17 | M207: 548 | N207: 4433 | O207: 548 | P207: x2 | Q207: 548 | S207: =M207*100/M1320 -> 1.16543672 | T207: 54 | V207: 3 | W207: 112 | X207: =IF(N207-N206=0,"",N207-N206) -> 865 | Y207: 0.9671532847 | Z207: 0.001824817518 | AA207: 0.03102189781 | AB207: =L207*100/B$1285 -> 600.7067138
A208: 2020-03-21T17:00:00 | B208: 4 | C208: P.A. Bolzano | D208: 127 | E208: 30 | F208: 157 | G208: 443 | H208: 600 | I208: 70 | J208: 70 | K208: 1 | L208: 20 | M208: 621 | N208: 5179 | O208: 548 | P208: 548 | S208: =M208*100/M1321 -> 1.159057822 | T208: -39 | V208: 3 | W208: =IF(M208-M207=0,"",M208-M207) -> 73 | X208: 746 | Y208: 0.9661835749 | Z208: 0.001610305958 | AA208: 0.03220611916 | AB208: =L208*100/B$1285 -> 706.7137809
A209: 2020-03-22T17:00:00 | B209: 4 | C209: P.A. Bolzano | D209: 146 | E209: 32 | F209: 178 | G209: 470 | H209: 648 | I209: 48 | J209: 48 | K209: 7 | L209: 23 | M209: 678 | N209: 5718 | O209: 548 | P209: 548 | S209: =M209*100/M1322 -> 1.146470966 | T209: -22 | U209: 6 | V209: 3 | W209: 57 | X209: 539 | Y209: 0.9557522124 | Z209: 0.01032448378 | AA209: 0.03392330383 | AB209: =L209*100/B$1285 -> 812.7208481
... 1079 more rows

Sheet Dati
A1: data | B1: codice_regione | C1: denominazione_regione | D1: ricoverati_con_sintomi | E1: terapia_intensiva | F1: totale_ospedalizzati | G1: isolamento_domiciliare | H1: totale_positivi | I1: variazione_totale_positivi | J1: nuovi_positivi | K1: dimessi_guariti | L1: deceduti | M1: totale_casi | N1: tamponi
A2: 2020-04-15T17:00:00 | B2: 1 | C2: Piemonte | D2: 3338 | E2: 366 | F2: 3704 | G2: 9491 | H2: 13195 | I2: 140 | J2: 539 | K2: 3019 | L2: 2015 | M2: 18229 | N2: 75664
A3: 2020-04-15T17:00:00 | B3: 2 | C3: Valle d'Aosta | D3: 112 | E3: 11 | F3: 123 | G3: 425 | H3: 548 | I3: -11 | J3: 11 | K3: 289 | L3: 121 | M3: 958 | N3: 3894
A4: 2020-04-15T17:00:00 | B4: 3 | C4: Lombardia | D4: 12043 | E4: 1074 | F4: 13117 | G4: 19804 | H4: 32921 | I4: 558 | J4: 827 | K4: 17855 | L4: 11377 | M4: 62153 | N4: 221968
A5: 2020-04-15T17:00:00 | B5: 4 | C5: P.A. Bolzano | D5: 166 | E5: 32 | F5: 198 | G5: 1378 | H5: 1576 | I5: 12 | J5: 40 | K5: 425 | L5: 223 | M5: 2224 | N5: 25370
A6: 2020-04-15T17:00:00 | B6: 4 | C6: P.A. Trento | D6: 312 | E6: 48 | F6: 360 | G6: 1744 | H6: 2104 | I6: 22 | J6: 79 | K6: 798 | L6: 318 | M6: 3220 | N6: 19535
A7: 2020-04-15T17:00:00 | B7: 5 | C7: Veneto | D7: 1402 | E7: 219 | F7: 1621 | G7: 9168 | H7: 10789 | I7: 53 | J7: 192 | K7: 2895 | L7: 940 | M7: 14624 | N7: 216344
A8: 2020-04-15T17:00:00 | B8: 6 | C8: Friuli Venezia Giulia | D8: 163 | E8: 24 | F8: 187 | G8: 1207 | H8: 1394 | I8: 495 | J8: 24 | K8: 938 | L8: 212 | M8: 2544 | N8: 33800
A9: 2020-04-15T17:00:00 | B9: 7 | C9: Liguria | D9: 959 | E9: 120 | F9: 1079 | G9: 2385 | H9: 3464 | I9: -2 | J9: 128 | K9: 1665 | L9: 807 | M9: 5936 | N9: 25793
A10: 2020-04-15T17:00:00 | B10: 8 | C10: Emilia-Romagna | D10: 3388 | E10: 325 | F10: 3713 | G10: 9864 | H10: 13577 | I10: -201 | J10: 277 | K10: 4664 | L10: 2788 | M10: 21029 | N10: 106149
A11: 2020-04-15T17:00:00 | B11: 9 | C11: Toscana | D11: 977 | E11: 216 | F11: 1193 | G11: 5224 | H11: 6417 | I11: 65 | J11: 139 | K11: 693 | L11: 556 | M11: 7666 | N11: 86348
A12: 2020-04-15T17:00:00 | B12: 10 | C12: Umbria | D12: 122 | E12: 37 | F12: 159 | G12: 423 | H12: 582 | I12: -40 | J12: 1 | K12: 686 | L12: 54 | M12: 1322 | N12: 20258
A13: 2020-04-15T17:00:00 | B13: 11 | C13: Marche | D13: 888 | E13: 106 | F13: 994 | G13: 2103 | H13: 3097 | I13: 2 | J13: 77 | K13: 1660 | L13: 746 | M13: 5503 | N13: 30329
A14: 2020-04-15T17:00:00 | B14: 12 | C14: Lazio | D14: 1342 | E14: 196 | F14: 1538 | G14: 2509 | H14: 4047 | I14: 25 | J14: 121 | K14: 874 | L14: 311 | M14: 5232 | N14: 75584
A15: 2020-04-15T17:00:00 | B15: 13 | C15: Abruzzo | D15: 341 | E15: 44 | F15: 385 | G15: 1425 | H15: 1810 | I15: 10 | J15: 29 | K15: 224 | L15: 240 | M15: 2274 | N15: 22500
A16: 2020-04-15T17:00:00 | B16: 14 | C16: Molise | D16: 27 | E16: 4 | F16: 31 | G16: 175 | H16: 206 | I16: 6 | J16: 6 | K16: 42 | L16: 15 | M16: 263 | N16: 2855
A17: 2020-04-15T17:00:00 | B17: 15 | C17: Campania | D17: 607 | E17: 86 | F17: 693 | G17: 2394 | H17: 3087 | I17: -7 | J17: 38 | K17: 442 | L17: 278 | M17: 3807 | N17: 39534
A18: 2020-04-15T17:00:00 | B18: 16 | C18: Puglia | D18: 592 | E18: 73 | F18: 665 | G18: 1908 | H18: 2573 | I18: 21 | J18: 66 | K18: 323 | L18: 288 | M18: 3184 | N18: 34518
A19: 2020-04-15T17:00:00 | B19: 17 | C19: Basilicata | D19: 60 | E19: 12 | F19: 72 | G19: 189 | H19: 261 | I19: -4 | J19: 1 | K19: 38 | L19: 21 | M19: 320 | N19: 5037
A20: 2020-04-15T17:00:00 | B20: 18 | C20: Calabria | D20: 156 | E20: 11 | F20: 167 | G20: 652 | H20: 819 | I20: 3 | J20: 15 | K20: 81 | L20: 71 | M20: 971 | N20: 19662
A21: 2020-04-15T17:00:00 | B21: 19 | C21: Sicilia | D21: 541 | E21: 49 | F21: 590 | G21: 1491 | H21: 2081 | I21: 10 | J21: 34 | K21: 273 | L21: 181 | M21: 2535 | N21: 39867
A22: 2020-04-15T17:00:00 | B22: 20 | C22: Sardegna | D22: 107 | E22: 26 | F22: 133 | G22: 737 | H22: 870 | I22: -30 | J22: 23 | K22: 208 | L22: 83 | M22: 1161 | N22: 12395
